Workbook

Sheet FOS pipe
B2: INPUT DATA | G2: ORI FOS PIPE | I2: mm | J2: ° | Z2: GREY 8,97PK 188 8451 468,5
B3: Cyl Capacity | D3: =PI()*D4^2/4000*D5 -> 124.8170469 | E3: cc | G3: D1 | I3: =1.06*I95*D11/I94+I95 -> 41.71366587 | AA3: mm | AB3: mm | AD3: °
B4: Bore | D4: 54 | E4: mm | G4: D Header | I4: =1.36*I95 -> 49.94672652 | J4: =DEGREES(ATAN((I4-I3)/(2*I11)))*2 -> 3.057800979 | M4: 3 STAGE | N4: mm | O4: ° | P4: % FOS | Q4: % Dia | T4: mm | U4: % FOS | V4: % L vs FOS | W4: % L Tot | Z4: D0 | AA4: 22 | AH4: KNOWN PIPE | AI4: mm | AJ4: L1 | AK4: 40
B5: Stroke | D5: 54.5 | E5: mm | G5: D Diffuser | I5: =3.5*I95 -> 128.5393697 | J5: =DEGREES(ATAN((I5-I4)/(2*I12)))*2 -> 16.36387247 | M5: D Exh Duct | N5: =IF(M63=TRUE,E104,"") -> 35.48344339 | Q5: 0 | S5: L Exh Duct | T5: =IF(M63=FALSE,"",E105) -> 81 | Z5: D1 | AA5: 22 | AB5: 85 | AC5: L1 | AD5: =IF(AB5>0,IF(OR(AA4=0,AA4=""),"",ABS(DEGREES(ATAN((AA5-AA4)/(2*AB5))))*2),"") -> 0 | AH5: D1 | AI5: 28 | AJ5: L2 | AK5: 33.125
B6: # of Exh Ports | D6: 3 | G6: D Belly | I6: =3.5*I95 -> 128.5393697 | M6: D Spigot | N6: =IF(M63=TRUE,E106,"") -> 40.97275119 | S6: L Spigot | T6: =IF(M63=FALSE,"",E107) -> 27 | Z6: D2 | AA6: 25.8 | AB6: 179 | AC6: L2 | AD6: 1.216289306 | AH6: D2 | AI6: 28.14 | AJ6: L3 | AK6: 90.85043898
B7: Exh Port Area | D7: 1318.5 | E7: mm² | G7: D Baffle/Stinger | I7: =3.1*SQRT(D8) -> 23.50691388 | J7: =DEGREES(ATAN((I6-I7)/(2*I14)))*2 -> 28.20980527 | M7: D1 | N7: =IF(M63=FALSE,(1.06*I95*D11/I94+I95)*P110/1000,"") ->  | P7: =IF($M$63=FALSE,P110/10+P110/10*$Q$5/100,"") ->  | S7: L Cyl | T7: =IF(M63=FALSE,D11,"") ->  | Z7: D3 | AA7: 32.3 | AB7: 83 | AC7: L3 | AD7: 4.484727757 | AH7: D3 | AI7: 31.64 | AJ7: L4 | AK7: 90.85043898
B8: Max BHP | D8: 57.5 | E8: BHP | G8: D Stinger | I8: =0.8*I95 -> 29.38042737 | S8: Total L Wobbly | T8: =IF(M63=FALSE,"",T5+T6) -> 108 | Z8: D4 | AA8: 43 | AB8: 69 | AC8: L4 | AD8: 8.867256501 | AH8: D4 | AI8: 36 | AJ8: L5 | AK8: 124.7773235
B9: RPM Max HP | D9: 13000 | E9: rpm | J9: % Ltotal | M9: D Header 1 | N9: =P118 -> 45.0506012 | O9: =IF(T9=0,"",IF($M$63=TRUE,2*DEGREES(ATAN((N9-N6)/(2*T9))),2*DEGREES(ATAN((N9-$N$7)/(2*T9))))) -> 3.780954127 | S9: L header 1 | T9: =IF(M63=TRUE,I96*U9/100-T5-T6,I96*U9/100-T7) -> 61.77245066 | U9: =M112/10 -> 66 | Z9: D5 | AA9: 70 | AB9: 141 | AC9: L5 | AD9: 10.93818994 | AH9: D5 | AI9: 53.63908324 | AJ9: L6 | AK9: 103.4462586
B10: Exh Port Duration | D10: 202.3 | E10: ° | G10: L Cyl | I10: =D11 -> 103 | M10: D Header 2 | N10: =P119 -> 49.8967798 | O10: =IF(T10=0,"",2*DEGREES(ATAN((N10-N9)/(2*T10)))) -> 3.174013456 | P10: =N106/10+N106/10*$Q$5/100 -> 99.9 | S10: L Header 2 | T10: =I96*U10/100 -> 87.45853519 | U10: =N112/10 -> 34 | Z10: D6 | AA10: 74 | AB10: 35 | AC10: L6 | AD10: 6.540975846 | AH10: D6 | AI10: 76.26087557 | AJ10: L7 | AK10: 140.6345339
B11: L cyl | D11: 103 | E11: mm | G11: L header | I11: =0.32*I16-D11 -> 154.2309858 | J11: =100/I16*SUM(I10:I11) -> 32 | S11: Total Header L | T11: =IF(M63=TRUE,T10+T9+T6+T5,T10+T9+T7) -> 257.2309858 | U11: =U9+U10 -> 100 | V11: =100/I16*T11 -> 32 | W11: =100/T22*T11 -> 32 | Z11: D7 | AA11: 74 | AB11: 79 | AC11: L7 | AD11: 0 | AH11: D7 | AI11: 115.3943513 | AJ11: L8 | AK11: 60.31515002
B12: Speed of Sound | D12: 587 | E12: m/s | G12: L Diffuser | I12: =I16*0.34 -> 273.3079225 | J12: =100/I16*SUM(I10:I12) -> 66 | M12: D Diffuser 1 | N12: =P120 -> 73.53627166 | O12: =IF(T12=0,"",2*DEGREES(ATAN((N12-N10)/(2*T12)))) -> 16.4061118 | S12: L Diffuser 1 | T12: =I12*U12/100 -> 81.99237674 | U12: =O112/10 -> 30 | Z12: D8 | AA12: 39.6 | AB12: 156 | AC12: L8 | AD12: 12.58362734 | AH12: D8 | AI12: 115.3943513 | AJ12: L9 | AK12: 37.77748141
G13: L Belly | I13: =0.08*I16 -> 64.30774646 | M13: D Diffuser 2 | N13: =P121 -> 112.8032128 | O13: =IF(T13=0,"",2*DEGREES(ATAN((N13-N12)/(2*T13)))) -> 16.35180327 | S13: L Diffuser 2 | T13: =I12*U13/100 -> 136.6539612 | U13: =P112/10 -> 50 | Z13: D9 | AA13: 26 | AB13: 50 | AC13: L9 | AD13: 15.48942109 | AH13: D9 | AI13: 107.8937185 | AJ13: L10 | AK13: 151.1099256
G14: L Baffle | I14: =0.26*I16 -> 209.000176 | M14: D Diffuser 3 | N14: =P122 -> 128.5393697 | O14: =IF(T14=0,"",2*DEGREES(ATAN((N14-N13)/(2*T14)))) -> 16.38197559 | P14: =M108/10+M108/10*$Q$5/100 -> 100 | S14: L Diffuser 3 | T14: =I12*U14/100 -> 54.66158449 | U14: =M114/10 -> 20 | Z14: D10 | AC14: L10 | AH14: D10 | AI14: 20 | AJ14: L11
S15: Totat Diffusor L | T15: =T14+T13+T12 -> 273.3079225 | U15: =U12+U13+U14 -> 100 | V15: =100/I16*(T11+T15) -> 66 | W15: =100/T22*(T11+T12+T13+T14) -> 66 | Z15: D11 | AC15: L11 | AH15: D11 | AJ15: L12
G16: L max | I16: =I94 -> 803.8468308 | M16: D Belly | N16: =P123 -> 128.5393697 | O16: =IF(T16=0,"",2*DEGREES(ATAN((N16-N14)/(2*T16)))) -> 0 | P16: =N108/10+N108/10*$Q$5/100 -> 100 | S16: L Belly | T16: =I13*U16/100 -> 64.30774646 | U16: =N114/10 -> 100 | Z16: D12 | AC16: L12 | AH16: D12 | AJ16: L13
B17: VOLUMES | D17: Vol | E17: % | S17: L Baffle 1 | T17: =$I$14*U17/100 -> 41.8000352 | U17: =O114/10 -> 20 | Z17: D13 | AC17: L13 | AH17: D13
B18: FOS | D18: =I87 -> 4109.495719 | E18: =D18/D3 -> 32.92415436 | M18: D Baffle 1 | N18: =P124 -> 107.5727457 | O18: =IF(T17=0,"",2*DEGREES(ATAN((N16-N18)/(2*T17)))) -> 28.15839858 | S18: L Baffle 2 | T18: =$I$14*U18/100 -> 135.8501144 | U18: =P114/10 -> 65 | Z18: D14 | AC18: L14 | AH18: D14
B19: 3 stage | D19: =S105 -> 4123.686097 | E19: =D19/D3 -> 33.03784378 | M19: D Baffle 2 | N19: =P125 -> 39.30396431 | O19: =IF(T18=0,"",2*DEGREES(ATAN((N18-N19)/(2*T18)))) -> 28.2088869 | S19: L Baffle 3 | T19: =$I$14*U19/100 -> 31.3500264 | U19: =M116/10 -> 15 | Z19: D15 | AC19: L15 | AH19: D15
B20: Free Design | D20: =AA135 -> 1538.13079 | E20: =D20/D3 -> 12.32308269 | M20: D Baffle 3 | N20: =P126 -> 23.57743462 | O20: =IF(T19=0,"",2*DEGREES(ATAN((N19-N20)/(2*T19)))) -> 28.16108374 | P20: =I7*100/N20 -> 99.70089731 | S20: Total Baffle L | T20: =T19+T18+T17 -> 209.000176 | U20: =U17+U18+U19 -> 100 | Z20: D16 | AC20: L16 | AH20: D16
M21: D Stinger | N21: =P127 -> 29.32166651 | P21: =I8*100/N21 -> 100.2004008 | Z21: D17 | AC21: L17 | AH21: D17
S22: L Total | T22: =T11+T15+T16+T20 -> 803.8468308 | Z22: D18 | AC22: L18
B23: FOS PIPE 3.1 | G23: Here you can write info about the pipe | Z23: D19 | AC23: L19 | AH23: KNOWN PIPE | AI23: mm | AJ23: L1 | AK23: 108
S24: by JanBros, based on the knowledge of Frits Overmars and Wayne "Wobbly" Wright | Z24: D20 | AC24: L20 | AH24: D1 | AI24: 41 | AJ24: L2 | AK24: 152.2
Z25: D21 | AC25: L21 | AH25: D2 | AI25: 49.6 | AJ25: L3 | AK25: 69.96682815
Z26: D22 | AC26: L22 | AH26: D3 | AI26: 66.6 | AJ26: L4 | AK26: 164.8850619
AC27: L Total | AD27: =IF(SUM(AB5:AB19)+SUM(AA4:AA19)="","",SUM(AB5:AB19)) -> 877 | AH27: D4 | AI27: 116.8 | AJ27: L5 | AK27: 49.90281125
AH28: D5 | AI28: 125.2 | AJ28: L6 | AK28: 45.01542252
AH29: D6 | AI29: 127.8 | AJ29: L7 | AK29: 31.97702693
AH30: D7 | AI30: 117 | AJ30: L8 | AK30: 132
AH31: D8 | AI31: 51 | AJ31: L9 | AK31: 50
AH32: D9 | AI32: 23.3 | AJ32: L10
AH33: D10 | AJ33: L11
AH34: D11 | AJ34: L12
AH35: D12 | AJ35: L13
AH36: D13
AH37: D14
AH38: D15
AH39: D16
AH40: D17
A62: MACRO | D62: Fos | M62: Wob Duct 3stage | S62: 3stage | Z62: free design
B63: TRUE | D63: FALSE | M63: TRUE | S63: TRUE | Z63: FALSE
F65: FOS | Q65: 3-stage diff
D66: no wob duct | N66: no wob duct | P66: wob duct | W66: free design
E67: x | G67: y | H67: -y | I67: vol | O67: x | Q67: y | R67: -y | S67: vol | W67: x | Y67: y | Z67: -y | AA67: vol
B68: Exh Duct | D68: 0 | E68: =IF(D63=TRUE,D68,"") ->  | F68: =I99/2 -> 20.48637559 | G68: =IF(D$63=TRUE,F68,"") ->  | H68: =IF(D$63=TRUE,-F68,"") ->  | M68: Duct | N68: 0 | O68: =IF(S63=TRUE,0,"") -> 0 | P68: =I99/2 -> 20.48637559 | Q68: =IF(S$63=TRUE,I99/2,"") -> 20.48637559 | R68: =IF(S$63=TRUE,-Q68,"") -> -20.48637559 | U68: 1 | V68: 0 | W68: =IF(Z63=TRUE,0,"") ->  | X68: =AA4/2 -> 11 | Y68: =IF($Z$63=TRUE,AA4/2,"") ->  | Z68: =IF($Z$63=TRUE,-Y68,"") -> 
D69: =IF(B63=FALSE,D11,E105) -> 81 | E69: =IF(D$63=TRUE,D69,"") ->  | F69: =IF(B63=TRUE,E104/2,I3/2) -> 17.74172169 | I69: =PI()*(D69-D68)/3000*(F68^2+F68*F69+F69^2) -> 93.12919636 | N69: =IF(M63=FALSE,D11,E105) -> 81 | O69: =IF(S$63=TRUE,N69,"") -> 81 | P69: =IF(M63=TRUE,E104/2,N7/2) -> 17.74172169 | Q69: =IF(S$63=TRUE,P69,"") -> 17.74172169 | R69: -17.74172169 | S69: =PI()/3000*(N69-N68)*(P69^2+P69*P68+P68^2) -> 93.12919636 | V69: =AB5 -> 85 | W69: =IF(OR(AB5=0,Z63=FALSE),"",AB5) ->  | X69: =AA5/2 -> 11 | Y69: =$Y$68 ->  | AA69: =PI()/3000*(V69-V68)*(X69^2+X69*X68+X68^2) -> 32.31128044
D70: =D69 -> 81 | F70: 0 | I70: =PI()*(D70-D69)/3000*(F69^2+F69*F70+F70^2) -> 0 | N70: =N69 -> 81 | O70: 81 | P70: 0 | Q70: 0 | R70: 0 | V70: =V69 -> 85 | W70: =W69 ->  | X70: 0 | Y70: =IF($Z$63=TRUE,0,"") ->  | AA70: =PI()/3000*(V70-V69)*(X70^2+X70*X69+X69^2) -> 0
D71: =D69 -> 81 | F71: =F69 -> 17.74172169 | I71: 0 | N71: =N69 -> 81 | O71: 81 | P71: =P69 -> 17.74172169 | Q71: 17.74172169 | R71: -17.74172169 | V71: =V69 -> 85 | W71: =W69 ->  | X71: =X68 -> 11 | Y71: =$Y$68 ->  | AA71: 0
B72: Head | D72: =IF(B63=FALSE,I11+D11,I11+E105+E107) -> 262.2309858 | F72: =I4/2 -> 24.97336326 | I72: 262.189009 | M72: spigot | N72: =IF(M63=FALSE,N69,E107+E105) -> 108 | O72: 108 | P72: =IF(M63=TRUE,E106/2,N7/2) -> 20.48637559 | Q72: 20.48637559 | R72: -20.48637559 | S72: =IF(M63=TRUE,PI()*(N72-N69)/3000*(P71^2+P71*P72+P72^2),0) -> 31.04306545 | U72: 2 | V72: =AB6+V69 -> 264 | W72: =IF(OR(AB6=0,Z63=FALSE),"",AB6+AB5) ->  | X72: =AA6/2 -> 12.9 | Y72: =IF($Z$63=TRUE,AA6/2,"") ->  | AA72: 80.47345615
D73: =D72 -> 262.2309858 | F73: 0 | I73: 0 | N73: =N72 -> 108 | O73: 108 | P73: 0 | Q73: 0 | R73: 0 | V73: =V72 -> 264 | W73: =W72 ->  | X73: 0 | Y73: =IF($Z$63=TRUE,0,"") ->  | AA73: 0
D74: =D72 -> 262.2309858 | F74: =F72 -> 24.97336326 | I74: 0 | N74: =N72 -> 108 | O74: 108 | P74: =P72 -> 20.48637559 | Q74: 20.48637559 | R74: -20.48637559 | V74: =V72 -> 264 | W74: =W73 ->  | X74: =X72 -> 12.9 | Y74: =$Y$72 ->  | AA74: 0
B75: Diff | D75: =I12+D72 -> 535.5389083 | F75: =I5/2 -> 64.26968486 | I75: 1820.07619 | M75: Head1 | N75: =IF(M63=FALSE,T9+D11,T9+E105+E107) -> 169.7724507 | O75: 169.7724507 | P75: =N9/2 -> 22.5253006 | Q75: 22.5253006 | R75: -22.5253006 | S75: =PI()*(N75-N74)/3000*(P75^2+P75*P74+P74^2) -> 89.82198173 | U75: 3 | V75: =AB7+V72 -> 347 | W75: =IF(Z63=FALSE,"",AB7+W72) ->  | X75: =AA7/2 -> 16.15 | Y75: =IF($Z$63=TRUE,AA7/2,"") ->  | AA75: 55.24187256
D76: =D75 -> 535.5389083 | F76: 0 | I76: 0 | N76: =N75 -> 169.7724507 | O76: 169.7724507 | P76: 0 | Q76: 0 | R76: 0 | S76: =PI()*(N76-N75)/3000*(P76^2+P76*P75+P75^2) -> 0 | V76: =V75 -> 347 | W76: =W75 ->  | X76: 0 | Y76: =IF($Z$63=TRUE,0,"") ->  | AA76: 0
D77: =D75 -> 535.5389083 | F77: =F75 -> 64.26968486 | I77: 0 | N77: =N75 -> 169.7724507 | O77: 169.7724507 | P77: =P75 -> 22.5253006 | Q77: 22.5253006 | R77: -22.5253006 | S77: 0 | V77: =V75 -> 347 | W77: =W75 ->  | X77: =X75 -> 16.15 | Y77: =$Y$75 ->  | AA77: 0
B78: Bel | D78: =I13+D75 -> 599.8466548 | F78: =I6/2 -> 64.26968486 | I78: 834.4983924 | M78: Head2 | N78: =N75+T10 -> 257.2309858 | O78: 257.2309858 | P78: =N10/2 -> 24.9483899 | Q78: 24.9483899 | R78: -24.9483899 | S78: 154.9440985 | U78: 4 | V78: =AB8+V75 -> 416 | W78: =IF(Z63=FALSE,"",AB8+W75) ->  | X78: =AA8/2 -> 21.5 | Y78: =IF($Z$63=TRUE,AA8/2,"") ->  | AA78: 77.33609155
D79: =D78 -> 599.8466548 | F79: 0 | I79: 0 | N79: =N78 -> 257.2309858 | O79: 257.2309858 | P79: 0 | Q79: 0 | R79: 0 | S79: 0 | V79: =V78 -> 416 | W79: =W78 ->  | X79: 0 | Y79: =IF($Z$63=TRUE,0,"") ->  | AA79: 0
D80: =D78 -> 599.8466548 | F80: =F78 -> 64.26968486 | I80: 0 | N80: =N78 -> 257.2309858 | O80: 257.2309858 | P80: =P78 -> 24.9483899 | Q80: 24.9483899 | R80: -24.9483899 | S80: 0 | V80: =V78 -> 416 | W80: =W78 ->  | X80: =X78 -> 21.5 | Y80: =$Y$78 ->  | AA80: 0
B81: Baf | D81: =I14+D78 -> 808.8468308 | F81: =I7/2 -> 11.75345694 | I81: 1099.602931 | M81: Diff1 | N81: =N78+T12 -> 339.2233626 | O81: 339.2233626 | P81: =N12/2 -> 36.76813583 | Q81: 36.76813583 | R81: -36.76813583 | S81: 248.2812242 | U81: 5 | V81: =AB9+V78 -> 557 | W81: =IF(Z63=FALSE,"",AB9+W78) ->  | X81: =AA9/2 -> 35 | Y81: =IF($Z$63=TRUE,AA9/2,"") ->  | AA81: 360.2409318
D82: =D81 -> 808.8468308 | F82: 0 | I82: 0 | N82: =N81 -> 339.2233626 | O82: 339.2233626 | P82: 0 | Q82: 0 | R82: 0 | S82: 0 | V82: =V81 -> 557 | W82: =W81 ->  | X82: 0 | Y82: =IF($Z$63=TRUE,0,"") ->  | AA82: 0
D83: =D81 -> 808.8468308 | F83: =F81 -> 11.75345694 | I83: 0 | N83: =N81 -> 339.2233626 | O83: 339.2233626 | P83: =P81 -> 36.76813583 | Q83: 36.76813583 | R83: -36.76813583 | S83: 0 | V83: =V81 -> 557 | W83: =W81 ->  | X83: =X81 -> 35 | Y83: =$Y$81 ->  | AA83: 0
B84: Sting | D84: =D81 -> 808.8468308 | F84: =I8/2 -> 14.69021368 | I84: 0 | M84: Diff2 | N84: =N81+T13 -> 475.8773238 | O84: 475.8773238 | P84: =N13/2 -> 56.40160642 | Q84: 56.40160642 | R84: -56.40160642 | S84: 945.4601936 | U84: 6 | V84: =AB10+V81 -> 592 | W84: =IF(Z63=FALSE,"",AB10+W81) ->  | X84: =AA10/2 -> 37 | Y84: =IF($Z$63=TRUE,AA10/2,"") ->  | AA84: 142.5392947
D85: =D81+50 -> 858.8468308 | F85: =F84 -> 14.69021368 | I85: 33.89815828 | N85: =N84 -> 475.8773238 | O85: 475.8773238 | P85: 0 | Q85: 0 | R85: 0 | S85: 0 | V85: =V84 -> 592 | W85: =W84 ->  | X85: 0 | Y85: =IF($Z$63=TRUE,0,"") ->  | AA85: 0
D86: =D85 -> 858.8468308 | F86: =F85 -> 14.69021368 | I86: 0 | N86: =N84 -> 475.8773238 | O86: 475.8773238 | P86: =P84 -> 56.40160642 | Q86: 56.40160642 | R86: -56.40160642 | S86: 0 | V86: =V84 -> 592 | W86: =W84 ->  | X86: =X84 -> 37 | Y86: =$Y$84 ->  | AA86: 0
I87: =SUM(I69:I81) -> 4109.495719 | M87: Diff3 | N87: =N84+T14 -> 530.5389083 | O87: 530.5389083 | P87: =N14/2 -> 64.26968486 | Q87: 64.26968486 | R87: -64.26968486 | S87: 626.0298363 | U87: 7 | V87: =AB11+V84 -> 671 | W87: =IF(Z63=FALSE,"",AB11+W84) ->  | X87: =AA11/2 -> 37 | Y87: =IF($Z$63=TRUE,AA11/2,"") ->  | AA87: 339.7663871
I88: total vol | N88: =N87 -> 530.5389083 | O88: 530.5389083 | P88: 0 | Q88: 0 | R88: 0 | S88: 0 | V88: =V87 -> 671 | W88: =W87 ->  | X88: 0 | Y88: =IF($Z$63=TRUE,0,"") ->  | AA88: 0
N89: =N87 -> 530.5389083 | O89: 530.5389083 | P89: =P87 -> 64.26968486 | Q89: 64.26968486 | R89: -64.26968486 | S89: 0 | V89: =V87 -> 671 | W89: =W87 ->  | X89: =X87 -> 37 | Y89: =$Y$87 ->  | AA89: 0
M90: Belly | N90: =N87+T16 -> 594.8466548 | O90: 594.8466548 | P90: =N16/2 -> 64.26968486 | Q90: 64.26968486 | R90: -64.26968486 | S90: 834.4983924 | U90: 8 | V90: =AB12+V87 -> 827 | W90: =IF(Z63=FALSE,"",AB12+W87) ->  | X90: =AA12/2 -> 19.8 | Y90: =IF($Z$63=TRUE,AA12/2,"") ->  | AA90: 407.3680574
N91: =N90 -> 594.8466548 | O91: 594.8466548 | P91: 0 | Q91: 0 | R91: 0 | S91: 0 | V91: =V90 -> 827 | W91: =W90 ->  | X91: 0 | Y91: =IF($Z$63=TRUE,0,"") ->  | AA91: 0
N92: =N90 -> 594.8466548 | O92: 594.8466548 | P92: =P90 -> 64.26968486 | Q92: 64.26968486 | R92: -64.26968486 | S92: 0 | V92: =V90 -> 827 | W92: =W90 ->  | X92: =X90 -> 19.8 | Y92: =$Y$90 ->  | AA92: 0
M93: Baff1 | N93: =N90+T17 -> 636.64669 | O93: 636.64669 | P93: =N18/2 -> 53.78637283 | Q93: 53.78637283 | R93: -53.78637283 | S93: 458.7574228 | U93: 9 | V93: =AB13+V90 -> 877 | W93: =IF(Z63=FALSE,"",AB13+W90) ->  | X93: =AA13/2 -> 13 | Y93: =IF($Z$63=TRUE,AA13/2,"") ->  | AA93: 42.85341819
D94: adjust graph | G94: Lmax | I94: =D12*D10*88/D9 -> 803.8468308 | N94: =N93 -> 636.64669 | O94: 636.64669 | P94: 0 | Q94: 0 | R94: 0 | S94: 0 | V94: =V93 -> 877 | W94: =W93 ->  | X94: 0 | Y94: =IF($Z$63=TRUE,0,"") ->  | AA94: 0
C95: Axis | D95: x | E95: Y | G95: X | I95: =(407-D10)/7100*(SQRT(D3*D9)) -> 36.72553421 | N95: =N93 -> 636.64669 | O95: 636.64669 | P95: =P93 -> 53.78637283 | Q95: 53.78637283 | R95: -53.78637283 | S95: 0 | V95: =V93 -> 877 | W95: =W93 ->  | X95: =X93 -> 13 | Y95: =Y93 ->  | AA95: 0
C96: Max | D96: =MROUND(MAX(I16,T22,AD27)+100,100) -> 1000 | E96: =MROUND(D96/10, 10) -> 100 | G96: header | I96: =0.32*I16 -> 257.2309858 | M96: Baff2 | N96: =N93+T18 -> 772.4968044 | O96: 772.4968044 | P96: =N19/2 -> 19.65198216 | Q96: 19.65198216 | R96: -19.65198216 | S96: 616.8736836 | U96: 10 | V96: =AB14+V93 -> 877 | W96: =IF(Z63=FALSE,"",AB14+W93) ->  | X96: =AA14/2 -> 0 | Y96: =IF($Z$63=TRUE,AA14/2,"") ->  | AA96: 0
C97: Min | D97: =0 -> 0 | E97: =-E96 -> -100 | G97: diffuser | I97: =0.66*I16 -> 530.5389083 | N97: =N96 -> 772.4968044 | O97: 772.4968044 | P97: 0 | Q97: 0 | R97: 0 | S97: 0 | V97: =V96 -> 877 | W97: =W96 ->  | X97: 0 | Y97: =IF($Z$63=TRUE,0,"") ->  | AA97: 0
C98: Tick | D98: 100 | E98: 20 | G98: diff-head | I98: =I97-I96 -> 273.3079225 | N98: =N97 -> 772.4968044 | O98: 772.4968044 | P98: =P96 -> 19.65198216 | Q98: 19.65198216 | R98: -19.65198216 | S98: 0 | V98: =V96 -> 877 | W98: =W96 ->  | X98: =X96 -> 0 | Y98: =Y96 ->  | AA98: 0
G99: Equiv D Exh port Area | I99: =SQRT(4*D7/PI()) -> 40.97275119 | M99: Baff3 | N99: =N96+T19 -> 803.8468308 | O99: 803.8468308 | P99: =N20/2 -> 11.78871731 | Q99: 11.78871731 | R99: -11.78871731 | S99: 24.84700248 | U99: 11 | V99: =AB15+V96 -> 877 | W99: =IF(Z63=FALSE,"",AB15+W96) ->  | X99: =AA15/2 -> 0 | Y99: =IF($Z$63=TRUE,AA15/2,"") ->  | AA99: 0
N100: =N99 -> 803.8468308 | O100: 803.8468308 | P100: 0 | Q100: 0 | R100: 0 | S100: 0 | V100: =V99 -> 877 | W100: =W99 ->  | X100: 0 | Y100: =IF($Z$63=TRUE,0,"") ->  | AA100: 0
C101: WOBBLY EXH DUCT / SPIGOT | N101: =N99 -> 803.8468308 | O101: 803.8468308 | P101: =P99 -> 11.78871731 | Q101: 11.78871731 | R101: -11.78871731 | S101: 0 | V101: =V99 -> 877 | W101: =W99 ->  | X101: =X99 -> 0 | Y101: =Y99 ->  | AA101: 0
C102: Duct Area % | E102: =IF(D6=1,90,75) -> 75 | F102: % | M102: Sting | N102: =N99 -> 803.8468308 | O102: 803.8468308 | P102: =N21/2 -> 14.66083326 | Q102: 14.66083326 | R102: -14.66083326 | S102: 0 | U102: 12 | V102: =AB16+V99 -> 877 | W102: =IF(Z63=FALSE,"",AB16+W99) ->  | X102: =AA16/2 -> 0 | Y102: =IF($Z$63=TRUE,AA16/2,"") ->  | AA102: 0
C103: Duct Area | E103: =D7*E102/100 -> 988.875 | F103: mm² | N103: =N102+50 -> 853.8468308 | O103: 853.8468308 | P103: =P102 -> 14.66083326 | Q103: 14.66083326 | R103: -14.66083326 | S103: 33.76270124 | V103: =V102 -> 877 | W103: =W102 ->  | X103: 0 | Y103: =IF($Z$63=TRUE,0,"") ->  | AA103: 0
C104: Duct Dia eq. to Area | E104: =SQRT(4*E103/PI()) -> 35.48344339 | F104: mm | N104: =N103 -> 853.8468308 | O104: 853.8468308 | P104: =P102 -> 14.66083326 | Q104: 14.66083326 | R104: -14.66083326 | S104: 0 | V104: =V102 -> 877 | W104: =W102 ->  | X104: =X102 -> 0 | Y104: =Y102 ->  | AA104: 0
C105: L Duct | E105: =1.5*D4 -> 81 | F105: mm | M105: Dhead1 | N105: Dhead2 | O105: Ddiff1 | P105: Ddiff2 | S105: =SUM(S69:S99) -> 4123.686097 | U105: 13 | V105: =AB17+V102 -> 877 | W105: =IF(Z63=FALSE,"",AB17+W102) ->  | X105: =AA17/2 -> 0 | Y105: =IF($Z$63=TRUE,AA17/2,"") ->  | AA105: 0
C106: Dia Spigot End | E106: =SQRT(4*D7/PI()) -> 40.97275119 | F106: mm | M106: 991 | N106: 999 | O106: 824 | P106: 1264 | S106: total vol | V106: =V105 -> 877 | W106: =W105 ->  | X106: 0 | Y106: =IF($Z$63=TRUE,0,"") ->  | AA106: 0
C107: L Spigot | E107: =2*D4-E105 -> 27 | F107: mm | M107: Ddiff3 | N107: Dmax | O107: Dbaff1 | P107: Dbaff2 | V107: =V105 -> 877 | W107: =W105 ->  | X107: =X105 -> 0 | Y107: =Y105 ->  | AA107: 0
M108: 1000 | N108: 1000 | O108: 1415 | P108: 517 | U108: 14 | V108: =AB18+V105 -> 877 | W108: =IF(Z63=FALSE,"",AB18+W105) ->  | X108: =AA18/2 -> 0 | Y108: =IF($Z$63=TRUE,AA18/2,"") ->  | AA108: 0
M109: Dbaff3 | N109: Dsting | P109: D1 | V109: =V108 -> 877 | W109: =W108 ->  | X109: 0 | Y109: =IF($Z$63=TRUE,0,"") ->  | AA109: 0
M110: 1003 | N110: 998 | P110: 1000 | V110: =V108 -> 877 | W110: =W109 ->  | X110: =X108 -> 0 | Y110: =Y108 ->  | AA110: 0
M111: Lhead1 | N111: Lhead2 | O111: Ldiff1 | P111: Ldiff2 | U111: 15 | V111: =AB19+V108 -> 877 | W111: =IF(Z63=FALSE,"",AB19+W108) ->  | X111: =AA19/2 -> 0 | Y111: =IF($Z$63=TRUE,AA19/2,"") ->  | AA111: 0
M112: 660 | N112: 340 | O112: 300 | P112: 500 | V112: =V111 -> 877 | W112: =W111 ->  | X112: 0 | Y112: =IF($Z$63=TRUE,0,"") ->  | AA112: 0
M113: Ldiff3 | N113: Lbelly | O113: Lbaff1 | P113: Lbaff2 | V113: =V112 -> 877 | W113: =W112 ->  | X113: =X111 -> 0 | Y113: =Y111 ->  | AA113: 0
M114: 200 | N114: 1000 | O114: 200 | P114: 650 | U114: 16 | V114: =AB20+V111 -> 877 | W114: =IF(Z63=FALSE,"",AB20+W111) ->  | X114: =AA20/2 -> 0 | Y114: =IF($Z$63=TRUE,AA20/2,"") ->  | AA114: 0
M115: Lbaff3 | V115: =V114 -> 877 | W115: =W114 ->  | X115: 0 | Y115: =IF($Z$63=TRUE,0,"") ->  | AA115: 0
M116: 150 | V116: =V115 -> 877 | W116: =W115 ->  | X116: =X114 -> 0 | Y116: =Y114 ->  | AA116: 0
U117: 17 | V117: =AB21+V114 -> 877 | W117: =IF(Z63=FALSE,"",AB21+W114) ->  | X117: =AA21/2 -> 0 | Y117: =IF($Z$63=TRUE,AA21/2,"") ->  | AA117: 0
M118: D Header 1 | O118: =IF(M63=TRUE,(I4+E106)/2*M106/1000,(1.06*I95*D11/I94+I95+I4)/2*M106/1000) -> 45.0506012 | P118: =O118+O118/100*$Q$5 -> 45.0506012 | V118: =V117 -> 877 | W118: =W117 ->  | X118: 0 | Y118: =IF($Z$63=TRUE,0,"") ->  | AA118: 0
M119: D Header 2 | O119: =I4*N106/1000 -> 49.8967798 | P119: 49.8967798 | V119: =V118 -> 877 | W119: =W118 ->  | X119: =X117 -> 0 | Y119: =Y117 ->  | AA119: 0
M120: D Diffuser 1 | O120: =(I5+I4)/2*O106/1000 -> 73.53627166 | P120: 73.53627166 | U120: 18 | V120: =AB22+V117 -> 877 | W120: =IF(Z63=FALSE,"",AB22+W117) ->  | X120: =AA22/2 -> 0 | Y120: =IF($Z$63=TRUE,AA22/2,"") ->  | AA120: 0
M121: D Diffuser 2 | O121: =(I5+I4)/2*P106/1000 -> 112.8032128 | P121: 112.8032128 | V121: =V120 -> 877 | X121: 0 | Y121: =IF($Z$63=TRUE,0,"") ->  | AA121: 0
M122: D Diffuser 3 | O122: =I5*M108/1000 -> 128.5393697 | P122: 128.5393697 | V122: 877 | X122: =X120 -> 0 | AA122: 0
M123: D Belly | O123: =I6*N108/1000 -> 128.5393697 | P123: 128.5393697 | U123: 19 | V123: =AB23+V120 -> 877 | W123: =IF(Z63=FALSE,"",AB23+W120) ->  | X123: =AA23/2 -> 0 | Y123: =IF($Z$63=TRUE,AA23/2,"") ->  | AA123: 0
M124: D Baffle 1 | O124: =(I6+I7)/2*O108/1000 -> 107.5727457 | P124: 107.5727457 | V124: =V123 -> 877 | X124: 0 | Y124: =IF($Z$63=TRUE,0,"") ->  | AA124: 0
M125: D Baffle 2 | O125: =(I6+I7)/2*P108/1000 -> 39.30396431 | P125: 39.30396431 | V125: 877 | X125: =X123 -> 0 | AA125: 0
M126: D Baffle 3 | O126: =I7*M110/1000 -> 23.57743462 | P126: =O126 -> 23.57743462 | U126: 20 | V126: =AB24+V123 -> 877 | W126: =IF(Z63=FALSE,"",AB24+W123) ->  | X126: =AA24/2 -> 0 | Y126: =IF($Z$63=TRUE,AA24/2,"") ->  | AA126: 0
M127: D Stinger | O127: =I8*N110/1000 -> 29.32166651 | P127: =O127 -> 29.32166651 | V127: =V126 -> 877 | X127: 0 | Y127: =IF($Z$63=TRUE,0,"") ->  | AA127: 0
V128: 877 | X128: =X126 -> 0 | AA128: 0
U129: 21 | V129: =AB25+V126 -> 877 | W129: =IF(Z63=FALSE,"",AB25+W126) ->  | X129: =AA25/2 -> 0 | Y129: =IF($Z$63=TRUE,AA25/2,"") ->  | AA129: 0
V130: =V129 -> 877 | X130: 0 | Y130: =IF($Z$63=TRUE,0,"") ->  | AA130: 0
V131: 877 | X131: =X129 -> 0 | AA131: 0
U132: 22 | V132: =AB26+V129 -> 877 | W132: =IF(Z63=FALSE,"",AB26+W129) ->  | X132: =AA26/2 -> 0 | Y132: =IF($Z$63=TRUE,AA26/2,"") ->  | Z132: =IF($Z$63=TRUE,-Y132,"") ->  | AA132: 0
V133: =V132 -> 877 | X133: 0 | Y133: =IF($Z$63=TRUE,0,"") ->  | AA133: 0
V134: 877 | X134: =X132 -> 0 | AA134: =PI()/3000*(V134-V133)*(X134^2+X134*X133+X133^2) -> 0
AA135: =SUM(AA69:AA117) -> 1538.13079
AA136: total vol

Sheet Pipe Comparator
B3: INPUT DATA | G3: FOS PIPE | I3: mm | J3: ° | L3: 1 | M3: original KR1S pipe | O3: SoS | P3: 577.3 | R3: 2 | S3: short fat pipe | U3: SoS | V3: 577.3 | X3: 3 | AA3: SoS | AD3: 4 | AG3: SoS
B4: Cyl Capacity | D4: =PI()*D5^2/4000*D6 -> 124.6282372 | E4: cc | G4: D Exh Duct | I4: =IF(B63=TRUE,D18,"") ->  | M4: mm | N4: mm | P4: ° | S4: mm | T4: mm | V4: ° | Y4: mm | Z4: mm | AB4: ° | AE4: mm | AF4: mm | AH4: °
B5: Bore | D5: 56 | E5: mm | G5: D Spigot | I5: =IF(B63=TRUE,D20,"") ->  | L5: D0 | M5: 36 | R5: D0 | S5: 36 | X5: D0 | AD5: D0
B6: Stroke | D6: 50.6 | E6: mm | G6: D1 | I6: =IF(B63=FALSE,1.06*I95*D8/I94+I95,"") -> 37.05946898 | L6: D1 | M6: 38.7 | N6: 42 | O6: L1 | P6: =IF(M5="","",IF(M6="","",DEGREES(ATAN((M6-M5)/N6)))) -> 3.678238722 | R6: D1 | S6: 36.5 | T6: 29.5 | U6: L1 | V6: =IF(S5="","",IF(S6="","",DEGREES(ATAN((S6-S5)/T6)))) -> 0.9710219311 | X6: D1 | AA6: L1 | AB6: =IF(Y5="","",IF(Y6="","",DEGREES(ATAN((Y6-Y5)/Z6)))) ->  | AD6: D1 | AG6: L1 | AH6: =IF(AE5="","",IF(AE6="","",DEGREES(ATAN((AE6-AE5)/AF6)))) ->  | AM6: 36.5 | AN6: 30
B7: Number of Exh Ports | D7: 3 | G7: D Header | I7: =1.36*I95 -> 47.54676671 | J7: =IF(B63=TRUE,DEGREES(ATAN((I7-I5)/I16)),DEGREES(ATAN((I7-I6)/I16))) -> 2.531689567 | L7: D2 | M7: 39.7 | N7: 28.5 | O7: L2 | P7: =IF(M6="","",IF(M7="","",DEGREES(ATAN((M7-M6)/N7)))) -> 2.009553813 | R7: D2 | S7: 37.8 | T7: 29.5 | U7: L2 | V7: =IF(S6="","",IF(S7="","",DEGREES(ATAN((S7-S6)/T7)))) -> 2.523266234 | X7: D2 | AA7: L2 | AB7: =IF(Y6="","",IF(Y7="","",DEGREES(ATAN((Y7-Y6)/Z7)))) ->  | AD7: D2 | AG7: L2 | AH7: =IF(AE6="","",IF(AE7="","",DEGREES(ATAN((AE7-AE6)/AF7)))) ->  | AM7: 38.8 | AN7: 30
B8: L cyl | D8: 51 | E8: mm | G8: D Diffuser | I8: =3.5*I95 -> 122.3630026 | J8: =DEGREES(ATAN((I8-I7)/I17)) -> 13.73050612 | L8: D3 | M8: 40.8 | N8: 28.5 | O8: L3 | P8: 2.210318924 | R8: D3 | S8: 39.1 | T8: 29.5 | U8: L3 | V8: 2.523266234 | X8: D3 | AA8: L3 | AD8: D3 | AG8: L3 | AM8: 39.2 | AN8: 30
B9: Exh Port Area | D9: 1137 | E9: mm² | G9: D Belly | I9: =3.5*I95 -> 122.3630026 | L9: D4 | M9: 42.2 | N9: 37 | O9: L4 | P9: 2.166914683 | R9: D4 | S9: 40.4 | T9: 29.5 | U9: L4 | V9: 2.523266234 | X9: D4 | AA9: L4 | AD9: D4 | AG9: L4 | AM9: 40.5 | AN9: 30
B10: HP @ Crankshaft | D10: 32.5 | E10: BHP | G10: D Baffle/Stinger | I10: =3.1*SQRT(D10) -> 17.67271909 | J10: =DEGREES(ATAN((I9-I10)/I19)) -> 24.08952679 | L10: D5 | M10: 44.3 | N10: 49 | O10: L5 | P10: 2.454031675 | R10: D5 | S10: 41.7 | T10: 29.5 | U10: L5 | V10: 2.523266234 | X10: D5 | AA10: L5 | AD10: D5 | AG10: L5 | AM10: 41.7 | AN10: 30
B11: Exh Port Duration | D11: 195 | E11: ° | G11: D Stinger | I11: =0.8*I95 -> 27.9686863 | L11: D6 | M11: 46.2 | N11: 42 | O11: L6 | P11: 2.590185968 | R11: D6 | S11: 43 | T11: 29.5 | U11: L6 | V11: 2.523266234 | X11: D6 | AA11: L6 | AD11: D6 | AG11: L6 | AM11: 43.1 | AN11: 30
B12: Speed of Sound | D12: 577.3 | E12: m/s | L12: D7 | M12: 52 | N12: 51 | O12: L7 | P12: 6.488115117 | R12: D7 | S12: 44.5 | T12: 29.5 | U12: L7 | V12: 2.910837826 | X12: D7 | AA12: L7 | AD12: D7 | AG12: L7 | AM12: 43.8 | AN12: 30
B13: RPM Max HP | D13: 11000 | E13: rpm | G13: L Cyl | I13: =IF(B63=FALSE,$D$8,"") -> 51 | L13: D8 | M13: 56 | N13: 31 | O13: L8 | P13: 7.35237936 | R13: D8 | S13: 47.9 | T13: 29.5 | U13: L8 | V13: 6.574572579 | X13: D8 | AA13: L8 | AD13: D8 | AG13: L8 | AM13: 47.9 | AN13: 30
G14: L Exh Duct | I14: =IF(B63=FALSE,"",D19) ->  | L14: D9 | M14: 60.5 | N14: 31 | O14: L9 | P14: 8.25943798 | R14: D9 | S14: 51.3 | T14: 29.5 | U14: L9 | V14: 6.574572579 | X14: D9 | AA14: L9 | AD14: D9 | AG14: L9 | AM14: 51.3 | AN14: 30
B15: WOBBLY EXH DUCT / SPIGOT | G15: L Spigot | I15: =IF(B63=FALSE,"",D21) ->  | L15: D10 | M15: 66.2 | N15: 30 | O15: L10 | P15: 10.75796709 | R15: D10 | S15: 55.4 | T15: 29.5 | U15: L10 | V15: 7.912455616 | X15: D10 | AA15: L10 | AD15: D10 | AG15: L10 | AM15: 55.4 | AN15: 30
B16: Duct Area % | D16: =IF(D7=1,90,75) -> 75 | E16: % | G16: L header | I16: =IF(B63=FALSE,0.32*I21-$D$8,0.32*I21-D19-D21) -> 237.18816 | L16: D11 | M16: 72.5 | N16: 30 | O16: L11 | P16: 11.85977912 | R16: D11 | S16: 59.9 | T16: 29.5 | U16: L11 | V16: 8.673174048 | X16: D11 | AA16: L11 | AD16: D11 | AG16: L11 | AM16: 59.9 | AN16: 30
B17: Duct Area | D17: =D9*D16/100 -> 852.75 | E17: mm² | G17: L Diffuser | I17: =I21*0.34 -> 306.19992 | L17: D12 | M17: 79 | N17: 31 | O17: L12 | P17: 11.84207612 | R17: D12 | S17: 66 | T17: 29.5 | U17: L12 | V17: 11.6829466 | X17: D12 | AA17: L12 | AD17: D12 | AG17: L12 | AM17: 66.5 | AN17: 30
B18: Duct Dia equiv to Area | D18: =SQRT(4*D17/PI()) -> 32.95079698 | E18: mm | G18: L Belly | I18: =0.08*I21 -> 72.04704 | L18: D13 | M18: 87 | N18: 31 | O18: L13 | P18: 14.4702941 | R18: D13 | S18: 72.3 | T18: 29.5 | U18: L13 | V18: 12.05495914 | X18: D13 | AA18: L13 | AD18: D13 | AG18: L13 | AM18: 72.3 | AN18: 30
B19: L Duct | D19: =1.5*D5 -> 84 | E19: mm | G19: L Baffle | I19: =0.26*I21 -> 234.15288 | L19: D14 | M19: 98.4 | N19: 35 | O19: L14 | P19: 18.0411696 | R19: D14 | S19: 78.9 | T19: 29.5 | U19: L14 | V19: 12.61104056 | X19: D14 | AA19: L14 | AD19: D14 | AG19: L14 | AM19: 78.9 | AN19: 30
B20: Dia Spigot End | D20: =SQRT(4*D9/PI()) -> 38.04830302 | E20: mm | L20: D15 | M20: 107 | N20: 33 | O20: L15 | P20: 14.60673735 | R20: D15 | S20: 90 | T20: 29.5 | U20: L15 | V20: 20.61987265 | X20: D15 | AA20: L15 | AD20: D15 | AG20: L15 | AM20: 89.5 | AN20: 30
B21: L Spigot | D21: =2*D5-D19 -> 28 | E21: mm | G21: L total | I21: =I94 -> 900.588 | L21: D16 | M21: 112.4 | N21: 30 | O21: L16 | P21: 10.20397372 | R21: D16 | S21: 100 | T21: 29.5 | U21: L16 | V21: 18.72578785 | X21: D16 | AA21: L16 | AD21: D16 | AG21: L16 | AM21: 99 | AN21: 30
L22: D17 | M22: 112.4 | N22: 31 | O22: L17 | P22: 0 | R22: D17 | S22: 109 | T22: 29.5 | U22: L17 | V22: 16.96614811 | X22: D17 | AA22: L17 | AD22: D17 | AG22: L17 | AM22: 109 | AN22: 30
L23: D18 | M23: 112.4 | N23: 31 | O23: L18 | P23: 0 | R23: D18 | S23: 112.8 | T23: 29.5 | U23: L18 | V23: 7.340053711 | X23: D18 | AA23: L18 | AD23: D18 | AG23: L18 | AM23: 112.8 | AN23: 30
L24: D19 | M24: 110 | N24: 31 | O24: L19 | P24: -4.426971647 | R24: D19 | S24: 111.4 | T24: 29.5 | U24: L19 | V24: -2.717083135 | X24: D19 | AA24: L19 | AD24: D19 | AG24: L19 | AM24: 111.4 | AN24: 30
L25: D20 | M25: 105 | N25: 31 | O25: L20 | P25: -9.162347046 | R25: D20 | S25: 106.8 | T25: 29.5 | U25: L20 | V25: -8.862883832 | X25: D20 | AA25: L20 | AD25: D20 | AG25: L20 | AM25: 106.8 | AN25: 30
B26: VOLUMES | C26: Vol | D26: % | L26: D21 | M26: 97 | N26: 31 | O26: L21 | P26: -14.4702941 | R26: D21 | S26: 98 | T26: 30 | U26: L21 | V26: -16.34817155 | X26: D21 | AA26: L21 | AD26: D21 | AG26: L21 | AM26: 98 | AN26: 30
B27: FOS | C27: =J90 -> 4156.22796 | D27: =C27/$D$4 -> 33.34900704 | L27: D22 | M27: 86 | N27: 33 | O27: L22 | P27: -18.43494882 | R27: D22 | S27: 85.5 | T27: 30 | U27: L22 | V27: -22.61986495 | X27: D22 | AA27: L22 | AD27: D22 | AG27: L22 | AM27: 83.2 | AN27: 30
B28: 1 | C28: =IF(SUM(M6:N35)+M5=0,"",P161) -> 3905.392898 | D28: =IF(SUM(M6:N35)+M5=0,"",C28/$D$4) -> 31.33634067 | L28: D23 | M28: 73 | N28: 29 | O28: L23 | P28: -24.14554196 | R28: D23 | S28: 73 | T28: 30 | U28: L23 | V28: -22.61986495 | X28: D23 | AA28: L23 | AD28: D23 | AG28: L23 | AM28: 71.5 | AN28: 30
B29: 2 | C29: =IF(SUM(S6:T35)+S5=0,"",V161) -> 3195.935513 | D29: =IF(SUM(S6:T35)+S5=0,"",C29/$D$4) -> 25.64375124 | G29: Pipe Comparator 1.0 | L29: D24 | M29: 57 | N29: 30 | O29: L24 | P29: -28.07248694 | R29: D24 | S29: 61 | T29: 30 | U29: L24 | V29: -21.80140949 | X29: D24 | AA29: L24 | AD29: D24 | AG29: L24 | AM29: 60.5 | AN29: 30
B30: 3 | C30: =IF(SUM(Y6:Z35)+Y5=0,"",AB161) ->  | D30: =IF(SUM(Y6:Z35)+Y5=0,"",C30/$D$4) ->  | L30: D25 | M30: 42 | N30: 28 | O30: L25 | P30: -28.17859011 | R30: D25 | S30: 47 | T30: 30 | U30: L25 | V30: -25.01689348 | X30: D25 | AA30: L25 | AD30: D25 | AG30: L25 | AM30: 48.6 | AN30: 30
B31: 4 | C31: =IF(SUM(AE6:AF35)+AE5=0,"",AH161) ->  | D31: =IF(SUM(AE6:AF35)+AE5=0,"",C31/$D$4) ->  | L31: D26 | M31: 22 | N31: 27 | O31: L26 | P31: -36.52885537 | R31: D26 | S31: 22 | T31: 50 | U31: L26 | V31: -26.56505118 | X31: D26 | AA31: L26 | AD31: D26 | AG31: L26 | AM31: 25.4 | AN31: 50
G32: explanation in the remark above | L32: D27 | O32: L27 | R32: D27 | U32: L27 | X32: D27 | AA32: L27 | AD32: D27 | AG32: L27
L33: D28 | O33: L28 | R33: D28 | U33: L28 | X33: D28 | AA33: L28 | AD33: D28 | AG33: L28
L34: D29 | O34: L29 | R34: D29 | U34: L29 | X34: D29 | AA34: L29 | AD34: D29 | AG34: L29
L35: D30 | O35: L30 | R35: D30 | U35: L30 | X35: D30 | AA35: L30 | AD35: D30 | AG35: L30
L36: L Total Exh only | N36: =IF(SUM(N6:N35)=0,"",SUM(N6:N35)) -> 862 | O36: timing | P36: Rpm | R36: L Total Exh only | T36: =IF(SUM(T6:T35)=0,"",SUM(T6:T35)) -> 790 | U36: timing | V36: Rpm | X36: L Total Exh only | Z36: =IF(SUM(Z6:Z35)=0,"",SUM(Z6:Z35)) ->  | AA36: timing | AB36: Rpm | AD36: L Total Exh only | AF36: =IF(SUM(AF6:AF35)=0,"",SUM(AF6:AF35)) ->  | AG36: timing | AH36: Rpm
B37: by JanBros, based on the knowledge of Frits Overmars and Wayne "Wobbly" Wright | L37: L Total incl L cyl | N37: =IF(SUM(N6:N35)=0,"",N36+$D$8) -> 913 | O37: 197.7 | P37: 11000 | R37: L Total incl L cyl | T37: =IF(SUM(T6:T35)=0,"",T36+$D$8) -> 841 | U37: 197.7 | V37: 11943 | X37: L Total incl L cyl | Z37: =IF(SUM(Z6:Z35)=0,"",Z36+$D$8) ->  | AD37: L Total incl L cyl | AF37: =IF(SUM(AF6:AF35)=0,"",AF36+$D$8) -> 
A62: MACRO | B62: Wob duct FOS | D62: Fos | N62: 4
B63: FALSE | D63: TRUE | N63: TRUE | T63: TRUE | Z63: FALSE | AF63: FALSE
E65: FOS | L65: 1 | N65: free design | R65: 2 | T65: free design | X65: 3 | Z65: free design | AD65: 4 | AF65: free design
D66: no wob duct | F66: wob duct | M66: x | N66: y | O66: -y | P66: vol | S66: x | T66: y | U66: -y | V66: vol | Y66: x | Z66: y | AA66: -y | AB66: vol | AE66: x | AF66: y | AG66: -y | AH66: vol
D67: x | G67: y | I67: -y | J67: vol | L67: 0 | M67: =IF(N63=TRUE,0,"") -> 0 | N67: =IF($N$63=TRUE,I99/2,"") -> 19.02415151 | O67: =IF($N$63=TRUE,-N67,"") -> -19.02415151 | R67: 0 | S67: =IF(T63=TRUE,0,"") -> 0 | T67: =IF($T$63=TRUE,I99/2,"") -> 19.02415151 | U67: =IF($T$63=TRUE,-T67,"") -> -19.02415151 | X67: 0 | Y67: =IF(Z63=TRUE,0,"") ->  | Z67: =IF($Z$63=TRUE,I99/2,"") ->  | AA67: =IF($Z$63=TRUE,-Z67,"") ->  | AD67: 0 | AE67: =IF(AF63=TRUE,0,"") ->  | AF67: =IF($AF$63=TRUE,I99/2,"") ->  | AG67: =IF($AF$63=TRUE,-AF67,"") -> 
B68: Exh Duct | D68: 0 | E68: =IF(D63=TRUE,D68,"") -> 0 | F68: =I99/2 -> 19.02415151 | G68: =IF(D$63=TRUE,F68,"") -> 19.02415151 | I68: =IF(D$63=TRUE,-F68,"") -> -19.02415151 | M68: =IF($N$63=TRUE,$D$8,"") -> 51 | N68: =IF($N$63=TRUE,M5/2,"") -> 18 | O68: =IF($N$63=TRUE,-N68,"") -> -18 | P68: =PI()*$D$8/3000*((I99/2)^2+(I99/2*M5/2)+(M5/2)^2) -> 54.92132953 | S68: =IF($T$63=TRUE,$D$8,"") -> 51 | T68: =IF($T$63=TRUE,S5/2,"") -> 18 | U68: -18 | V68: =PI()*$D$8/3000*((I99/2)^2+(I99/2*S5/2)+(S5/2)^2) -> 54.92132953 | Y68: =IF($Z$63=TRUE,$D$8,"") ->  | Z68: =IF($Z$63=TRUE,Y5/2,"") ->  | AB68: =PI()*$D$8/3000*((I99/2)^2+(I99/2*Y5/2)+(Y5/2)^2) -> 19.329 | AE68: =IF($AF$63=TRUE,$D$8,"") ->  | AF68: =IF($AF$63=TRUE,AE5/2,"") ->  | AH68: =PI()*$D$8/3000*((I99/2)^2+(I99/2*AE5/2)+(AE5/2)^2) -> 19.329
D69: =IF(B63=FALSE,$D$8,D19) -> 51 | E69: =IF(D$63=TRUE,D69,"") -> 51 | F69: =IF(B63=TRUE,D18/2,I6/2) -> 18.52973449 | G69: 18.52973449 | I69: -18.52973449 | J69: =IF(B63=TRUE,PI()*D69/3000*(F69^2+F69*F68+F68^2),PI()*D69/3000*(F68^2+F68*F71+F71^2)) -> 56.49303617 | M69: =M68 -> 51 | N69: =IF($N$63=TRUE,0,"") -> 0 | O69: 0 | S69: =S68 -> 51 | T69: =IF($T$63=TRUE,0,"") -> 0 | U69: 0 | Y69: =Y68 ->  | Z69: =IF($Z$63=TRUE,0,"") ->  | AE69: =AE68 ->  | AF69: =IF($AF$63=TRUE,0,"") -> 
D70: =D69 -> 51 | E70: 51 | F70: 0 | G70: 0 | I70: 0 | M70: =M69 -> 51 | N70: =N68 -> 18 | O70: -18 | S70: =S69 -> 51 | T70: =T68 -> 18 | U70: -18 | Y70: =Y69 ->  | Z70: =Z68 ->  | AE70: =AE69 ->  | AF70: =AF68 -> 
D71: =D69 -> 51 | E71: 51 | F71: =F69 -> 18.52973449 | G71: 18.52973449 | I71: -18.52973449 | L71: 1 | M71: =IF($N$63=FALSE,"",N$6+$D$8) -> 93 | N71: =IF($N$63=TRUE,M6/2,"") -> 19.35 | O71: -19.35 | P71: =PI()*N6/3000*((M5/2)^2+(M5/2*M6/2)+(M6/2)^2) -> 46.03726003 | R71: 1 | S71: =IF($T$63=FALSE,"",T$6+$D$8) -> 80.5 | T71: =IF($T$63=TRUE,S6/2,"") -> 18.25 | U71: -18.25 | V71: =PI()*T6/3000*((S5/2)^2+(S5/2*S6/2)+(S6/2)^2) -> 30.44631978 | X71: 1 | Y71: =IF($Z$63=FALSE,"",Z$6+$D$8) ->  | Z71: =IF($Z$63=TRUE,Y6/2,"") ->  | AB71: =PI()*Z6/3000*((Y5/2)^2+(Y5/2*Y6/2)+(Y6/2)^2) -> 0 | AD71: 1 | AE71: =IF($AF$63=FALSE,"",AF$6+$D$8) ->  | AF71: =IF($AF$63=TRUE,AE6/2,"") ->  | AH71: =PI()*AF6/3000*((AE5/2)^2+(AE5/2*AE6/2)+(AE6/2)^2) -> 0
B72: Trans | D72: =IF(B63=FALSE,D69,D21+D19) -> 51 | E72: 51 | F72: =IF(B63=TRUE,D20/2,I6/2) -> 18.52973449 | G72: 18.52973449 | I72: -18.52973449 | J72: =IF(B63=TRUE,PI()*(D72-D69)/3000*(F71^2+F71*F72+F72^2),0) -> 0 | M72: =M71 -> 93 | N72: =IF($N$63=TRUE,0,"") -> 0 | O72: 0 | S72: =S71 -> 80.5 | T72: =IF($T$63=TRUE,0,"") -> 0 | U72: 0 | Y72: =Y71 ->  | Z72: =IF($Z$63=TRUE,0,"") ->  | AE72: =AE71 ->  | AF72: =IF($AF$63=TRUE,0,"") -> 
D73: =D72 -> 51 | E73: 51 | F73: 0 | G73: 0 | I73: 0 | M73: =M72 -> 93 | N73: =N71 -> 19.35 | O73: -19.35 | S73: =S72 -> 80.5 | T73: =T71 -> 18.25 | U73: -18.25 | Y73: =Y72 ->  | Z73: =Z71 ->  | AE73: =AE72 ->  | AF73: =AF71 -> 
D74: =D72 -> 51 | E74: 51 | F74: =F72 -> 18.52973449 | G74: 18.52973449 | I74: -18.52973449 | L74: 2 | M74: =IF($N$63=FALSE,"",SUM(N6:N7)+$D$8) -> 121.5 | N74: =IF($N$63=TRUE,M7/2,"") -> 19.85 | O74: -19.85 | P74: =PI()*N7/3000*((M6/2)^2+(M6/2*M7/2)+(M7/2)^2) -> 34.39778098 | R74: 2 | S74: =IF($T$63=FALSE,"",SUM(T6:T7)+$D$8) -> 110 | T74: =IF($T$63=TRUE,S7/2,"") -> 18.9 | U74: -18.9 | V74: =PI()*T7/3000*((S6/2)^2+(S6/2*S7/2)+(S7/2)^2) -> 31.97966047 | X74: 2 | Y74: =IF($Z$63=FALSE,"",SUM(Z6:Z7)+$D$8) ->  | Z74: =IF($Z$63=TRUE,Y7/2,"") ->  | AB74: =PI()*Z7/3000*((Y6/2)^2+(Y6/2*Y7/2)+(Y7/2)^2) -> 0 | AD74: 2 | AE74: =IF($AF$63=FALSE,"",SUM(AF6:AF7)+$D$8) ->  | AF74: =IF($AF$63=TRUE,AE7/2,"") ->  | AH74: =PI()*AF7/3000*((AE6/2)^2+(AE6/2*AE7/2)+(AE7/2)^2) -> 0
B75: Head | D75: =IF(B63=FALSE,I16+$D$8,I16+D19+D21) -> 288.18816 | E75: 288.18816 | F75: =I7/2 -> 23.77338336 | G75: 23.77338336 | I75: -23.77338336 | J75: =PI()*(D75-D72)/3000*(F75^2+F75*F74+F74^2) -> 335.0782395 | M75: =M74 -> 121.5 | N75: =IF($N$63=TRUE,0,"") -> 0 | O75: 0 | S75: =S74 -> 110 | T75: =IF($T$63=TRUE,0,"") -> 0 | U75: 0 | Y75: =Y74 ->  | Z75: =IF($Z$63=TRUE,0,"") ->  | AE75: =AE74 ->  | AF75: =IF($AF$63=TRUE,0,"") -> 
D76: =D75 -> 288.18816 | E76: 288.18816 | F76: 0 | G76: 0 | I76: 0 | M76: =M75 -> 121.5 | N76: =N74 -> 19.85 | O76: -19.85 | S76: =S75 -> 110 | T76: =T74 -> 18.9 | U76: -18.9 | Y76: =Y75 ->  | Z76: =Z74 ->  | AE76: =AE75 ->  | AF76: =AF74 -> 
D77: =D75 -> 288.18816 | E77: 288.18816 | F77: =F75 -> 23.77338336 | G77: 23.77338336 | I77: -23.77338336 | L77: 3 | M77: =IF($N$63=FALSE,"",SUM(N6:N8)+$D$8) -> 150 | N77: =IF($N$63=TRUE,M8/2,"") -> 20.4 | O77: -20.4 | P77: =PI()*N8/3000*((M7/2)^2+(M7/2*M8/2)+(M8/2)^2) -> 36.26548923 | R77: 3 | S77: =IF($T$63=FALSE,"",SUM(T6:T8)+$D$8) -> 139.5 | T77: =IF($T$63=TRUE,S8/2,"") -> 19.55 | U77: -19.55 | V77: =PI()*T8/3000*((S7/2)^2+(S7/2*S8/2)+(S8/2)^2) -> 34.25673395 | X77: 3 | Y77: =IF($Z$63=FALSE,"",SUM(Z6:Z8)+$D$8) ->  | Z77: =IF($Z$63=TRUE,Y8/2,"") ->  | AB77: =PI()*Z8/3000*((Y7/2)^2+(Y7/2*Y8/2)+(Y8/2)^2) -> 0 | AD77: 3 | AE77: =IF($AF$63=FALSE,"",SUM(AF6:AF8)+$D$8) ->  | AF77: =IF($AF$63=TRUE,AE8/2,"") ->  | AH77: =PI()*AF8/3000*((AE7/2)^2+(AE7/2*AE8/2)+(AE8/2)^2) -> 0
B78: Diff | D78: =I17+D75 -> 594.38808 | E78: 594.38808 | F78: =I8/2 -> 61.18150128 | G78: 61.18150128 | I78: -61.18150128 | J78: =PI()*(D78-D75)/3000*(F77^2+F77*F78+F78^2) -> 1847.865421 | M78: =M77 -> 150 | N78: =IF($N$63=TRUE,0,"") -> 0 | O78: 0 | S78: =S77 -> 139.5 | T78: =IF($T$63=TRUE,0,"") -> 0 | U78: 0 | Y78: =Y77 ->  | Z78: =IF($Z$63=TRUE,0,"") ->  | AE78: =AE77 ->  | AF78: =IF($AF$63=TRUE,0,"") -> 
D79: =D78 -> 594.38808 | E79: 594.38808 | F79: 0 | G79: 0 | I79: 0 | M79: =M78 -> 150 | N79: =N77 -> 20.4 | O79: -20.4 | S79: =S78 -> 139.5 | T79: =T77 -> 19.55 | U79: -19.55 | Y79: =Y78 ->  | Z79: =Z77 ->  | AE79: =AE78 ->  | AF79: =AF77 -> 
D80: =D78 -> 594.38808 | E80: =IF(D$63=TRUE,$D$80,"") -> 594.38808 | F80: =F78 -> 61.18150128 | G80: 61.18150128 | I80: -61.18150128 | L80: 4 | M80: =IF($N$63=FALSE,"",SUM(N6:N9)+$D$8) -> 187 | N80: =IF($N$63=TRUE,M9/2,"") -> 21.1 | O80: -21.1 | P80: =PI()*N9/3000*((M8/2)^2+(M8/2*M9/2)+(M9/2)^2) -> 50.05286994 | R80: 4 | S80: =IF($T$63=FALSE,"",SUM(T6:T9)+$D$8) -> 169 | T80: =IF($T$63=TRUE,S9/2,"") -> 20.2 | U80: -20.2 | V80: =PI()*T9/3000*((S8/2)^2+(S8/2*S9/2)+(S9/2)^2) -> 36.61211948 | X80: 4 | Y80: =IF($Z$63=FALSE,"",SUM(Z6:Z9)+$D$8) ->  | Z80: =IF($Z$63=TRUE,Y9/2,"") ->  | AB80: =PI()*Z9/3000*((Y8/2)^2+(Y8/2*Y9/2)+(Y9/2)^2) -> 0 | AD80: 4 | AE80: =IF($AF$63=FALSE,"",SUM(AF6:AF9)+$D$8) ->  | AF80: =IF($AF$63=TRUE,AE9/2,"") ->  | AH80: =PI()*AF9/3000*((AE8/2)^2+(AE8/2*AE9/2)+(AE9/2)^2) -> 0
B81: Bel | D81: =I18+D78 -> 666.43512 | E81: =IF(D$63=TRUE,$D$81,"") -> 666.43512 | F81: =I9/2 -> 61.18150128 | G81: 61.18150128 | I81: -61.18150128 | J81: =PI()*($D$81-D78)/3000*(F81^2+F81*F80+F80^2) -> 847.239655 | M81: =M80 -> 187 | N81: =IF($N$63=TRUE,0,"") -> 0 | O81: 0 | S81: =S80 -> 169 | T81: =IF($T$63=TRUE,0,"") -> 0 | U81: 0 | Y81: =Y80 ->  | Z81: =IF($Z$63=TRUE,0,"") ->  | AE81: =AE80 ->  | AF81: =IF($AF$63=TRUE,0,"") -> 
D82: =$D$81 -> 666.43512 | E82: =IF(D$63=TRUE,$D$82,"") -> 666.43512 | F82: 0 | G82: 0 | I82: 0 | M82: =M81 -> 187 | N82: =N80 -> 21.1 | O82: -21.1 | S82: =S81 -> 169 | T82: =T80 -> 20.2 | U82: -20.2 | Y82: =Y81 ->  | Z82: =Z80 ->  | AE82: =AE81 ->  | AF82: =AF80 -> 
D83: =$D$81 -> 666.43512 | E83: =IF(D$63=TRUE,$D$83,"") -> 666.43512 | F83: =F81 -> 61.18150128 | G83: 61.18150128 | I83: -61.18150128 | L83: 5 | M83: =IF($N$63=FALSE,"",SUM(N6:N10)+$D$8) -> 236 | N83: =IF($N$63=TRUE,M10/2,"") -> 22.15 | O83: -22.15 | P83: =PI()*N10/3000*((M9/2)^2+(M9/2*M10/2)+(M10/2)^2) -> 72.00182431 | R83: 5 | S83: =IF($T$63=FALSE,"",SUM(T6:T10)+$D$8) -> 198.5 | T83: =IF($T$63=TRUE,S10/2,"") -> 20.85 | U83: -20.85 | V83: =PI()*T10/3000*((S9/2)^2+(S9/2*S10/2)+(S10/2)^2) -> 39.04581706 | X83: 5 | Y83: =IF($Z$63=FALSE,"",SUM(Z6:Z10)+$D$8) ->  | Z83: =IF($Z$63=TRUE,Y10/2,"") ->  | AB83: =PI()*Z10/3000*((Y9/2)^2+(Y9/2*Y10/2)+(Y10/2)^2) -> 0 | AD83: 5 | AE83: =IF($AF$63=FALSE,"",SUM(AF6:AF10)+$D$8) ->  | AF83: =IF($AF$63=TRUE,AE10/2,"") ->  | AH83: =PI()*AF10/3000*((AE9/2)^2+(AE9/2*AE10/2)+(AE10/2)^2) -> 0
B84: Baf | D84: =I19+$D$81 -> 900.588 | E84: =IF(D$63=TRUE,$D$84,"") -> 900.588 | F84: =I10/2 -> 8.836359545 | G84: 8.836359545 | I84: -8.836359545 | J84: =PI()*($D$84-$D$81)/3000*(F83^2+F83*F84+F84^2) -> 1069.551608 | M84: =M83 -> 236 | N84: =IF($N$63=TRUE,0,"") -> 0 | O84: 0 | S84: =S83 -> 198.5 | T84: =IF($T$63=TRUE,0,"") -> 0 | U84: 0 | Y84: =Y83 ->  | Z84: =IF($Z$63=TRUE,0,"") ->  | AE84: =AE83 ->  | AF84: =IF($AF$63=TRUE,0,"") -> 
D85: =$D$84 -> 900.588 | E85: =IF(D$63=TRUE,$D$85,"") -> 900.588 | F85: 0 | G85: 0 | I85: 0 | M85: =M84 -> 236 | N85: =N83 -> 22.15 | O85: -22.15 | S85: =S84 -> 198.5 | T85: =T83 -> 20.85 | U85: -20.85 | Y85: =Y84 ->  | Z85: =Z83 ->  | AE85: =AE84 ->  | AF85: =AF83 -> 
D86: =$D$84 -> 900.588 | E86: =IF(D$63=TRUE,$D$86,"") -> 900.588 | F86: =F84 -> 8.836359545 | G86: 8.836359545 | I86: -8.836359545 | L86: 6 | M86: =IF($N$63=FALSE,"",SUM(N6:N11)+$D$8) -> 278 | N86: =IF($N$63=TRUE,M11/2,"") -> 23.1 | O86: -23.1 | P86: =PI()*N11/3000*((M10/2)^2+(M10/2*M11/2)+(M11/2)^2) -> 67.55230024 | R86: 6 | S86: =IF($T$63=FALSE,"",SUM(T6:T11)+$D$8) -> 228 | T86: =IF($T$63=TRUE,S11/2,"") -> 21.5 | U86: -21.5 | V86: =PI()*T11/3000*((S10/2)^2+(S10/2*S11/2)+(S11/2)^2) -> 41.55782669 | X86: 6 | Y86: =IF($Z$63=FALSE,"",SUM(Z6:Z11)+$D$8) ->  | Z86: =IF($Z$63=TRUE,Y11/2,"") ->  | AB86: =PI()*Z11/3000*((Y10/2)^2+(Y10/2*Y11/2)+(Y11/2)^2) -> 0 | AD86: 6 | AE86: =IF($AF$63=FALSE,"",SUM(AF6:AF11)+$D$8) ->  | AF86: =IF($AF$63=TRUE,AE11/2,"") ->  | AH86: =PI()*AF11/3000*((AE10/2)^2+(AE10/2*AE11/2)+(AE11/2)^2) -> 0
B87: Sting | D87: =$D$84 -> 900.588 | E87: =IF(D$63=TRUE,$D$87,"") -> 900.588 | F87: =I11/2 -> 13.98434315 | G87: 13.98434315 | I87: -13.98434315 | M87: =M86 -> 278 | N87: =IF($N$63=TRUE,0,"") -> 0 | O87: 0 | S87: =S86 -> 228 | T87: =IF($T$63=TRUE,0,"") -> 0 | U87: 0 | Y87: =Y86 ->  | Z87: =IF($Z$63=TRUE,0,"") ->  | AE87: =AE86 ->  | AF87: =IF($AF$63=TRUE,0,"") -> 
D88: =$D$84+50 -> 950.588 | E88: =IF(D$63=TRUE,$D$88,"") -> 950.588 | F88: =F87 -> 13.98434315 | G88: 13.98434315 | I88: -13.98434315 | M88: =M87 -> 278 | N88: =N86 -> 23.1 | O88: -23.1 | S88: =S87 -> 228 | T88: =T86 -> 21.5 | U88: -21.5 | Y88: =Y87 ->  | Z88: =Z86 ->  | AE88: =AE87 ->  | AF88: =AF86 -> 
D89: =$D$88 -> 950.588 | E89: =IF(D$63=TRUE,$D$89,"") -> 950.588 | F89: =F88 -> 13.98434315 | G89: 13.98434315 | I89: -13.98434315 | L89: 7 | M89: =IF($N$63=FALSE,"",SUM(N6:N12)+$D$8) -> 329 | N89: =IF($N$63=TRUE,M12/2,"") -> 26 | O89: -26 | P89: =PI()*N12/3000*((M11/2)^2+(M11/2*M12/2)+(M12/2)^2) -> 96.67802144 | R89: 7 | S89: =IF($T$63=FALSE,"",SUM(T6:T12)+$D$8) -> 257.5 | T89: =IF($T$63=TRUE,S12/2,"") -> 22.25 | U89: -22.25 | V89: =PI()*T12/3000*((S11/2)^2+(S11/2*S12/2)+(S12/2)^2) -> 44.35172881 | X89: 7 | Y89: =IF($Z$63=FALSE,"",SUM(Z6:Z12)+$D$8) ->  | Z89: =IF($Z$63=TRUE,Y12/2,"") ->  | AB89: =PI()*Z12/3000*((Y11/2)^2+(Y11/2*Y12/2)+(Y12/2)^2) -> 0 | AD89: 7 | AE89: =IF($AF$63=FALSE,"",SUM(AF6:AF12)+$D$8) ->  | AF89: =IF($AF$63=TRUE,AE12/2,"") ->  | AH89: =PI()*AF12/3000*((AE11/2)^2+(AE11/2*AE12/2)+(AE12/2)^2) -> 0
J90: =(J69+J72+J75+J78+J81+J84) -> 4156.22796 | M90: =M89 -> 329 | N90: =IF($N$63=TRUE,0,"") -> 0 | O90: 0 | S90: =S89 -> 257.5 | T90: =IF($T$63=TRUE,0,"") -> 0 | U90: 0 | Y90: =Y89 ->  | Z90: =IF($Z$63=TRUE,0,"") ->  | AE90: =AE89 ->  | AF90: =IF($AF$63=TRUE,0,"") -> 
J91: total vol | M91: =M90 -> 329 | N91: =N89 -> 26 | O91: -26 | S91: =S90 -> 257.5 | T91: =T89 -> 22.25 | U91: -22.25 | Y91: =Y90 ->  | Z91: =Z89 ->  | AE91: =AE90 ->  | AF91: =AF89 -> 
G92: =1.06*I95*D8/I94+I95 -> 37.05946898 | L92: 8 | M92: =IF($N$63=FALSE,"",SUM(N6:N13)+$D$8) -> 360 | N92: =IF($N$63=TRUE,M13/2,"") -> 28 | O92: -28 | P92: =PI()*N13/3000*((M12/2)^2+(M12/2*M13/2)+(M13/2)^2) -> 71.0293155 | R92: 8 | S92: =IF($T$63=FALSE,"",SUM(T6:T13)+$D$8) -> 287 | T92: =IF($T$63=TRUE,S13/2,"") -> 23.95 | U92: -23.95 | V92: =PI()*T13/3000*((S12/2)^2+(S12/2*S13/2)+(S13/2)^2) -> 49.47568476 | X92: 8 | Y92: =IF($Z$63=FALSE,"",SUM(Z6:Z13)+$D$8) ->  | Z92: =IF($Z$63=TRUE,Y13/2,"") ->  | AB92: =PI()*Z13/3000*((Y12/2)^2+(Y12/2*Y13/2)+(Y13/2)^2) -> 0 | AD92: 8 | AE92: =IF($AF$63=FALSE,"",SUM(AF6:AF13)+$D$8) ->  | AF92: =IF($AF$63=TRUE,AE13/2,"") ->  | AH92: =PI()*AF13/3000*((AE12/2)^2+(AE12/2*AE13/2)+(AE13/2)^2) -> 0
M93: =M92 -> 360 | N93: =IF($N$63=TRUE,0,"") -> 0 | O93: 0 | S93: =S92 -> 287 | T93: =IF($T$63=TRUE,0,"") -> 0 | U93: 0 | Y93: =Y92 ->  | Z93: =IF($Z$63=TRUE,0,"") ->  | AE93: =AE92 ->  | AF93: =IF($AF$63=TRUE,0,"") -> 
G94: Lmax | I94: =D12*D11*88/D13 -> 900.588 | M94: =M93 -> 360 | N94: =N92 -> 28 | O94: -28 | S94: =S93 -> 287 | T94: =T92 -> 23.95 | U94: -23.95 | Y94: =Y93 ->  | Z94: =Z92 ->  | AE94: =AE93 ->  | AF94: =AF92 -> 
G95: X | I95: =(407-D11)/7100*(SQRT(D4*D13)) -> 34.96085788 | L95: 9 | M95: =IF($N$63=FALSE,"",SUM(N6:N14)+$D$8) -> 391 | N95: =IF($N$63=TRUE,M14/2,"") -> 30.25 | O95: -30.25 | P95: =PI()*N14/3000*((M13/2)^2+(M13/2*M14/2)+(M14/2)^2) -> 82.65314287 | R95: 9 | S95: =IF($T$63=FALSE,"",SUM(T6:T14)+$D$8) -> 316.5 | T95: =IF($T$63=TRUE,S14/2,"") -> 25.65 | U95: -25.65 | V95: =PI()*T14/3000*((S13/2)^2+(S13/2*S14/2)+(S14/2)^2) -> 57.0223715 | X95: 9 | Y95: =IF($Z$63=FALSE,"",SUM(Z6:Z14)+$D$8) ->  | Z95: =IF($Z$63=TRUE,Y14/2,"") ->  | AB95: =PI()*Z14/3000*((Y13/2)^2+(Y13/2*Y14/2)+(Y14/2)^2) -> 0 | AD95: 9 | AE95: =IF($AF$63=FALSE,"",SUM(AF6:AF14)+$D$8) ->  | AF95: =IF($AF$63=TRUE,AE14/2,"") ->  | AH95: =PI()*AF14/3000*((AE13/2)^2+(AE13/2*AE14/2)+(AE14/2)^2) -> 0
G96: header | I96: =0.32*I21 -> 288.18816 | M96: =M95 -> 391 | N96: =IF($N$63=TRUE,0,"") -> 0 | O96: 0 | S96: =S95 -> 316.5 | T96: =IF($T$63=TRUE,0,"") -> 0 | U96: 0 | Y96: =Y95 ->  | Z96: =IF($Z$63=TRUE,0,"") ->  | AE96: =AE95 ->  | AF96: =IF($AF$63=TRUE,0,"") -> 
G97: diffuser | I97: =0.66*I21 -> 594.38808 | M97: =M96 -> 391 | N97: =N95 -> 30.25 | O97: -30.25 | S97: =S96 -> 316.5 | T97: =T95 -> 25.65 | U97: -25.65 | Y97: =Y96 ->  | Z97: =Z95 ->  | AE97: =AE96 ->  | AF97: =AF95 -> 
G98: diff-head | I98: =I97-I96 -> 306.19992 | L98: 10 | M98: =IF($N$63=FALSE,"",SUM(N6:N15)+$D$8) -> 421 | N98: =IF($N$63=TRUE,M15/2,"") -> 33.1 | O98: -33.1 | P98: =PI()*N15/3000*((M14/2)^2+(M14/2*M15/2)+(M15/2)^2) -> 94.62312139 | R98: 10 | S98: =IF($T$63=FALSE,"",SUM(T6:T15)+$D$8) -> 346 | T98: =IF($T$63=TRUE,S15/2,"") -> 27.7 | U98: -27.7 | V98: =PI()*T15/3000*((S14/2)^2+(S14/2*S15/2)+(S15/2)^2) -> 65.97728501 | X98: 10 | Y98: =IF($Z$63=FALSE,"",SUM(Z6:Z15)+$D$8) ->  | Z98: =IF($Z$63=TRUE,Y15/2,"") ->  | AB98: =PI()*Z15/3000*((Y14/2)^2+(Y14/2*Y15/2)+(Y15/2)^2) -> 0 | AD98: 10 | AE98: =IF($AF$63=FALSE,"",SUM(AF6:AF15)+$D$8) ->  | AF98: =IF($AF$63=TRUE,AE15/2,"") ->  | AH98: =PI()*AF15/3000*((AE14/2)^2+(AE14/2*AE15/2)+(AE15/2)^2) -> 0
G99: Equiv D Exh port Area | I99: =SQRT(4*D9/PI()) -> 38.04830302 | M99: =M98 -> 421 | N99: =IF($N$63=TRUE,0,"") -> 0 | O99: 0 | S99: =S98 -> 346 | T99: =IF($T$63=TRUE,0,"") -> 0 | U99: 0 | Y99: =Y98 ->  | Z99: =IF($Z$63=TRUE,0,"") ->  | AE99: =AE98 ->  | AF99: =IF($AF$63=TRUE,0,"") -> 
M100: =M99 -> 421 | N100: =N98 -> 33.1 | O100: -33.1 | S100: =S99 -> 346 | T100: =T98 -> 27.7 | U100: -27.7 | Y100: =Y99 ->  | Z100: =Z98 ->  | AE100: =AE99 ->  | AF100: =AF98 -> 
L101: 11 | M101: =IF($N$63=FALSE,"",SUM(N6:N16)+$D$8) -> 451 | N101: =IF($N$63=TRUE,M16/2,"") -> 36.25 | O101: -36.25 | P101: =PI()*N16/3000*((M15/2)^2+(M15/2*M16/2)+(M16/2)^2) -> 113.3972791 | R101: 11 | S101: =IF($T$63=FALSE,"",SUM(T6:T16)+$D$8) -> 375.5 | T101: =IF($T$63=TRUE,S16/2,"") -> 29.95 | U101: -29.95 | V101: =PI()*T16/3000*((S15/2)^2+(S15/2*S16/2)+(S16/2)^2) -> 77.04260789 | X101: 11 | Y101: =IF($Z$63=FALSE,"",SUM(Z6:Z16)+$D$8) ->  | Z101: =IF($Z$63=TRUE,Y16/2,"") ->  | AB101: =PI()*Z16/3000*((Y15/2)^2+(Y15/2*Y16/2)+(Y16/2)^2) -> 0 | AD101: 11 | AE101: =IF($AF$63=FALSE,"",SUM(AF6:AF16)+$D$8) ->  | AF101: =IF($AF$63=TRUE,AE16/2,"") ->  | AH101: =PI()*AF16/3000*((AE15/2)^2+(AE15/2*AE16/2)+(AE16/2)^2) -> 0
M102: =M101 -> 451 | N102: =IF($N$63=TRUE,0,"") -> 0 | O102: 0 | S102: =S101 -> 375.5 | T102: =IF($T$63=TRUE,0,"") -> 0 | U102: 0 | Y102: =Y101 ->  | Z102: =IF($Z$63=TRUE,0,"") ->  | AE102: =AE101 ->  | AF102: =IF($AF$63=TRUE,0,"") -> 
M103: =M102 -> 451 | N103: =N101 -> 36.25 | O103: -36.25 | S103: =S102 -> 375.5 | T103: =T101 -> 29.95 | U103: -29.95 | Y103: =Y102 ->  | Z103: =Z101 ->  | AE103: =AE102 ->  | AF103: =AF101 -> 
H104: adjust graph | L104: 12 | M104: =IF($N$63=FALSE,"",SUM(N6:N17)+$D$8) -> 482 | N104: =IF($N$63=TRUE,M17/2,"") -> 39.5 | O104: -39.5 | P104: =PI()*N17/3000*((M16/2)^2+(M16/2*M17/2)+(M17/2)^2) -> 139.7922992 | R104: 12 | S104: =IF($T$63=FALSE,"",SUM(T6:T17)+$D$8) -> 405 | T104: =IF($T$63=TRUE,S17/2,"") -> 33 | U104: -33 | V104: =PI()*T17/3000*((S16/2)^2+(S16/2*S17/2)+(S17/2)^2) -> 91.8846723 | X104: 12 | Y104: =IF($Z$63=FALSE,"",SUM(Z6:Z17)+$D$8) ->  | Z104: =IF($Z$63=TRUE,Y17/2,"") ->  | AB104: =PI()*Z17/3000*((Y16/2)^2+(Y16/2*Y17/2)+(Y17/2)^2) -> 0 | AD104: 12 | AE104: =IF($AF$63=FALSE,"",SUM(AF6:AF17)+$D$8) ->  | AF104: =IF($AF$63=TRUE,AE17/2,"") ->  | AH104: =PI()*AF17/3000*((AE16/2)^2+(AE16/2*AE17/2)+(AE17/2)^2) -> 0
G105: Axis | H105: x | I105: Y | M105: =M104 -> 482 | N105: =IF($N$63=TRUE,0,"") -> 0 | O105: 0 | S105: =S104 -> 405 | T105: =IF($T$63=TRUE,0,"") -> 0 | U105: 0 | Y105: =Y104 ->  | Z105: =IF($Z$63=TRUE,0,"") ->  | AE105: =AE104 ->  | AF105: =IF($AF$63=TRUE,0,"") -> 
G106: Max | H106: =MROUND(MAX(I21,M31,R33,AG45)+100,100) -> 1000 | I106: =MROUND(H106/10, 10) -> 100 | M106: =M105 -> 482 | N106: =N104 -> 39.5 | O106: -39.5 | S106: =S105 -> 405 | T106: =T104 -> 33 | U106: -33 | Y106: =Y105 ->  | Z106: =Z104 ->  | AE106: =AE105 ->  | AF106: =AF104 -> 
G107: Min | H107: =0 -> 0 | I107: =-I106 -> -100 | L107: 13 | M107: =IF($N$63=FALSE,"",SUM(N6:N18)+$D$8) -> 513 | N107: =IF($N$63=TRUE,M18/2,"") -> 43.5 | O107: -43.5 | P107: =PI()*N18/3000*((M17/2)^2+(M17/2*M18/2)+(M18/2)^2) -> 167.8586989 | R107: 13 | S107: =IF($T$63=FALSE,"",SUM(T6:T18)+$D$8) -> 434.5 | T107: =IF($T$63=TRUE,S18/2,"") -> 36.15 | U107: -36.15 | V107: =PI()*T18/3000*((S17/2)^2+(S17/2*S18/2)+(S18/2)^2) -> 110.8655363 | X107: 13 | Y107: =IF($Z$63=FALSE,"",SUM(Z6:Z18)+$D$8) ->  | Z107: =IF($Z$63=TRUE,Y18/2,"") ->  | AB107: =PI()*Z18/3000*((Y17/2)^2+(Y17/2*Y18/2)+(Y18/2)^2) -> 0 | AD107: 13 | AE107: =IF($AF$63=FALSE,"",SUM(AF6:AF18)+$D$8) ->  | AF107: =IF($AF$63=TRUE,AE18/2,"") ->  | AH107: =PI()*AF18/3000*((AE17/2)^2+(AE17/2*AE18/2)+(AE18/2)^2) -> 0
G108: Tick | H108: 100 | I108: 20 | M108: =M107 -> 513 | N108: =IF($N$63=TRUE,0,"") -> 0 | O108: 0 | S108: =S107 -> 434.5 | T108: =IF($T$63=TRUE,0,"") -> 0 | U108: 0 | Y108: =Y107 ->  | Z108: =IF($Z$63=TRUE,0,"") ->  | AE108: =AE107 ->  | AF108: =IF($AF$63=TRUE,0,"") -> 
M109: =M108 -> 513 | N109: =N107 -> 43.5 | O109: -43.5 | S109: =S108 -> 434.5 | T109: =T107 -> 36.15 | U109: -36.15 | Y109: =Y108 ->  | Z109: =Z107 ->  | AE109: =AE108 ->  | AF109: =AF107 -> 
L110: 14 | M110: =IF($N$63=FALSE,"",SUM(N6:N19)+$D$8) -> 548 | N110: =IF($N$63=TRUE,M19/2,"") -> 49.2 | O110: -49.2 | P110: =PI()*N19/3000*((M18/2)^2+(M18/2*M19/2)+(M19/2)^2) -> 236.5181016 | R110: 14 | S110: =IF($T$63=FALSE,"",SUM(T6:T19)+$D$8) -> 464 | T110: =IF($T$63=TRUE,S19/2,"") -> 39.45 | U110: -39.45 | V110: =PI()*T19/3000*((S18/2)^2+(S18/2*S19/2)+(S19/2)^2) -> 132.5046852 | X110: 14 | Y110: =IF($Z$63=FALSE,"",SUM(Z6:Z19)+$D$8) ->  | Z110: =IF($Z$63=TRUE,Y19/2,"") ->  | AB110: =PI()*Z19/3000*((Y18/2)^2+(Y18/2*Y19/2)+(Y19/2)^2) -> 0 | AD110: 14 | AE110: =IF($AF$63=FALSE,"",SUM(AF6:AF19)+$D$8) ->  | AF110: =IF($AF$63=TRUE,AE19/2,"") ->  | AH110: =PI()*AF19/3000*((AE18/2)^2+(AE18/2*AE19/2)+(AE19/2)^2) -> 0
M111: =M110 -> 548 | N111: =IF($N$63=TRUE,0,"") -> 0 | O111: 0 | S111: =S110 -> 464 | T111: =IF($T$63=TRUE,0,"") -> 0 | U111: 0 | Y111: =Y110 ->  | Z111: =IF($Z$63=TRUE,0,"") ->  | AE111: =AE110 ->  | AF111: =IF($AF$63=TRUE,0,"") -> 
M112: =M111 -> 548 | N112: =N110 -> 49.2 | O112: -49.2 | S112: =S111 -> 464 | T112: =T110 -> 39.45 | U112: -39.45 | Y112: =Y111 ->  | Z112: =Z110 ->  | AE112: =AE111 ->  | AF112: =AF110 -> 
L113: 15 | M113: =IF($N$63=FALSE,"",SUM(N6:N20)+$D$8) -> 581 | N113: =IF($N$63=TRUE,M20/2,"") -> 53.5 | O113: -53.5 | P113: =PI()*N20/3000*((M19/2)^2+(M19/2*M20/2)+(M20/2)^2) -> 273.5258746 | R113: 15 | S113: =IF($T$63=FALSE,"",SUM(T6:T20)+$D$8) -> 493.5 | T113: =IF($T$63=TRUE,S20/2,"") -> 45 | U113: -45 | V113: =PI()*T20/3000*((S19/2)^2+(S19/2*S20/2)+(S20/2)^2) -> 165.4763755 | X113: 15 | Y113: =IF($Z$63=FALSE,"",SUM(Z6:Z20)+$D$8) ->  | Z113: =IF($Z$63=TRUE,Y20/2,"") ->  | AB113: =PI()*Z20/3000*((Y19/2)^2+(Y19/2*Y20/2)+(Y20/2)^2) -> 0 | AD113: 15 | AE113: =IF($AF$63=FALSE,"",SUM(AF6:AF20)+$D$8) ->  | AF113: =IF($AF$63=TRUE,AE20/2,"") ->  | AH113: =PI()*AF20/3000*((AE19/2)^2+(AE19/2*AE20/2)+(AE20/2)^2) -> 0
M114: =M113 -> 581 | N114: =IF($N$63=TRUE,0,"") -> 0 | O114: 0 | S114: =S113 -> 493.5 | T114: =IF($T$63=TRUE,0,"") -> 0 | U114: 0 | Y114: =Y113 ->  | Z114: =IF($Z$63=TRUE,0,"") ->  | AE114: =AE113 ->  | AF114: =IF($AF$63=TRUE,0,"") -> 
M115: =M114 -> 581 | N115: =N113 -> 53.5 | O115: -53.5 | S115: =S114 -> 493.5 | T115: =T113 -> 45 | U115: -45 | Y115: =Y114 ->  | Z115: =Z113 ->  | AE115: =AE114 ->  | AF115: =AF113 -> 
L116: 16 | M116: =IF($N$63=FALSE,"",SUM(N6:N21)+$D$8) -> 611 | N116: =IF($N$63=TRUE,M21/2,"") -> 56.2 | O116: -56.2 | P116: =PI()*N21/3000*((M20/2)^2+(M20/2*M21/2)+(M21/2)^2) -> 283.6038211 | R116: 16 | S116: =IF($T$63=FALSE,"",SUM(T6:T21)+$D$8) -> 523 | T116: =IF($T$63=TRUE,S21/2,"") -> 50 | U116: -50 | V116: =PI()*T21/3000*((S20/2)^2+(S20/2*S21/2)+(S21/2)^2) -> 209.2955206 | X116: 16 | Y116: =IF($Z$63=FALSE,"",SUM(Z6:Z21)+$D$8) ->  | Z116: =IF($Z$63=TRUE,Y21/2,"") ->  | AB116: =PI()*Z21/3000*((Y20/2)^2+(Y20/2*Y21/2)+(Y21/2)^2) -> 0 | AD116: 16 | AE116: =IF($AF$63=FALSE,"",SUM(AF6:AF21)+$D$8) ->  | AF116: =IF($AF$63=TRUE,AE21/2,"") ->  | AH116: =PI()*AF21/3000*((AE20/2)^2+(AE20/2*AE21/2)+(AE21/2)^2) -> 0
M117: =M116 -> 611 | N117: =IF($N$63=TRUE,0,"") -> 0 | O117: 0 | S117: =S116 -> 523 | T117: =IF($T$63=TRUE,0,"") -> 0 | U117: 0 | Y117: =Y116 ->  | Z117: =IF($Z$63=TRUE,0,"") ->  | AE117: =AE116 ->  | AF117: =IF($AF$63=TRUE,0,"") -> 
M118: =M117 -> 611 | N118: =N116 -> 56.2 | O118: -56.2 | S118: =S117 -> 523 | T118: =T116 -> 50 | U118: -50 | Y118: =Y117 ->  | Z118: =Z116 ->  | AE118: =AE117 ->  | AF118: =AF116 -> 
L119: 17 | M119: =IF($N$63=FALSE,"",SUM(N6:N22)+$D$8) -> 642 | N119: =IF($N$63=TRUE,M22/2,"") -> 56.2 | O119: -56.2 | P119: =PI()*N22/3000*((M21/2)^2+(M21/2*M22/2)+(M22/2)^2) -> 307.5984889 | R119: 17 | S119: =IF($T$63=FALSE,"",SUM(T6:T22)+$D$8) -> 552.5 | T119: =IF($T$63=TRUE,S22/2,"") -> 54.5 | U119: -54.5 | V119: =PI()*T22/3000*((S21/2)^2+(S21/2*S22/2)+(S22/2)^2) -> 253.1703491 | X119: 17 | Y119: =IF($Z$63=FALSE,"",SUM(Z6:Z22)+$D$8) ->  | Z119: =IF($Z$63=TRUE,Y22/2,"") ->  | AB119: =PI()*Z22/3000*((Y21/2)^2+(Y21/2*Y22/2)+(Y22/2)^2) -> 0 | AD119: 17 | AE119: =IF($AF$63=FALSE,"",SUM(AF6:AF22)+$D$8) ->  | AF119: =IF($AF$63=TRUE,AE22/2,"") ->  | AH119: =PI()*AF22/3000*((AE21/2)^2+(AE21/2*AE22/2)+(AE22/2)^2) -> 0
M120: =M119 -> 642 | N120: =IF($N$63=TRUE,0,"") -> 0 | O120: 0 | S120: =S119 -> 552.5 | T120: =IF($T$63=TRUE,0,"") -> 0 | U120: 0 | Y120: =Y119 ->  | Z120: =IF($Z$63=TRUE,0,"") ->  | AE120: =AE119 ->  | AF120: =IF($AF$63=TRUE,0,"") -> 
M121: =M120 -> 642 | N121: =N119 -> 56.2 | O121: -56.2 | S121: =S120 -> 552.5 | T121: =T119 -> 54.5 | U121: -54.5 | Y121: =Y120 ->  | Z121: =Z119 ->  | AE121: =AE120 ->  | AF121: =AF119 -> 
L122: 18 | M122: =IF($N$63=FALSE,"",SUM(N6:N23)+$D$8) -> 673 | N122: =IF($N$63=TRUE,M23/2,"") -> 56.2 | O122: -56.2 | P122: =PI()*N23/3000*((M22/2)^2+(M22/2*M23/2)+(M23/2)^2) -> 307.5984889 | R122: 18 | S122: =IF($T$63=FALSE,"",SUM(T6:T23)+$D$8) -> 582 | T122: =IF($T$63=TRUE,S23/2,"") -> 56.4 | U122: -56.4 | V122: =PI()*T23/3000*((S22/2)^2+(S22/2*S23/2)+(S23/2)^2) -> 284.9820325 | X122: 18 | Y122: =IF($Z$63=FALSE,"",SUM(Z6:Z23)+$D$8) ->  | Z122: =IF($Z$63=TRUE,Y23/2,"") ->  | AB122: =PI()*Z23/3000*((Y22/2)^2+(Y22/2*Y23/2)+(Y23/2)^2) -> 0 | AD122: 18 | AE122: =IF($AF$63=FALSE,"",SUM(AF6:AF23)+$D$8) ->  | AF122: =IF($AF$63=TRUE,AE23/2,"") ->  | AH122: =PI()*AF23/3000*((AE22/2)^2+(AE22/2*AE23/2)+(AE23/2)^2) -> 0
M123: =M122 -> 673 | N123: =IF($N$63=TRUE,0,"") -> 0 | O123: 0 | S123: =S122 -> 582 | T123: =IF($T$63=TRUE,0,"") -> 0 | U123: 0 | Y123: =Y122 ->  | Z123: =IF($Z$63=TRUE,0,"") ->  | AE123: =AE122 ->  | AF123: =IF($AF$63=TRUE,0,"") -> 
M124: =M123 -> 673 | N124: =N122 -> 56.2 | O124: -56.2 | S124: =S123 -> 582 | T124: =T122 -> 56.4 | U124: -56.4 | Y124: =Y123 ->  | Z124: =Z122 ->  | AE124: =AE123 ->  | AF124: =AF122 -> 
L125: 19 | M125: =IF($N$63=FALSE,"",SUM(N6:N24)+$D$8) -> 704 | N125: =IF($N$63=TRUE,M24/2,"") -> 55 | O125: -55 | P125: =PI()*N24/3000*((M23/2)^2+(M23/2*M24/2)+(M24/2)^2) -> 301.0772966 | R125: 19 | S125: =IF($T$63=FALSE,"",SUM(T6:T24)+$D$8) -> 611.5 | T125: =IF($T$63=TRUE,S24/2,"") -> 55.7 | U125: -55.7 | V125: =PI()*T24/3000*((S23/2)^2+(S23/2*S24/2)+(S24/2)^2) -> 291.1580267 | X125: 19 | Y125: =IF($Z$63=FALSE,"",SUM(Z6:Z24)+$D$8) ->  | Z125: =IF($Z$63=TRUE,Y24/2,"") ->  | AB125: =PI()*Z24/3000*((Y23/2)^2+(Y23/2*Y24/2)+(Y24/2)^2) -> 0 | AD125: 19 | AE125: =IF($AF$63=FALSE,"",SUM(AF6:AF24)+$D$8) ->  | AF125: =IF($AF$63=TRUE,AE24/2,"") ->  | AH125: =PI()*AF24/3000*((AE23/2)^2+(AE23/2*AE24/2)+(AE24/2)^2) -> 0
M126: =M125 -> 704 | N126: =IF($N$63=TRUE,0,"") -> 0 | O126: 0 | S126: =S125 -> 611.5 | T126: =IF($T$63=TRUE,0,"") -> 0 | U126: 0 | Y126: =Y125 ->  | Z126: =IF($Z$63=TRUE,0,"") ->  | AE126: =AE125 ->  | AF126: =IF($AF$63=TRUE,0,"") -> 
M127: =M126 -> 704 | N127: =N125 -> 55 | O127: -55 | S127: =S126 -> 611.5 | T127: =T125 -> 55.7 | U127: -55.7 | Y127: =Y126 ->  | Z127: =Z125 ->  | AE127: =AE126 ->  | AF127: =AF125 -> 
L128: 20 | M128: =IF($N$63=FALSE,"",SUM(N6:N25)+$D$8) -> 735 | N128: =IF($N$63=TRUE,M25/2,"") -> 52.5 | O128: -52.5 | P128: =PI()*N25/3000*((M24/2)^2+(M24/2*M25/2)+(M25/2)^2) -> 281.4147069 | R128: 20 | S128: =IF($T$63=FALSE,"",SUM(T6:T25)+$D$8) -> 641 | T128: =IF($T$63=TRUE,S25/2,"") -> 53.4 | U128: -53.4 | V128: =PI()*T25/3000*((S24/2)^2+(S24/2*S25/2)+(S25/2)^2) -> 275.8199859 | X128: 20 | Y128: =IF($Z$63=FALSE,"",SUM(Z6:Z25)+$D$8) ->  | Z128: =IF($Z$63=TRUE,Y25/2,"") ->  | AB128: =PI()*Z25/3000*((Y24/2)^2+(Y24/2*Y25/2)+(Y25/2)^2) -> 0 | AD128: 20 | AE128: =IF($AF$63=FALSE,"",SUM(AF6:AF25)+$D$8) ->  | AF128: =IF($AF$63=TRUE,AE25/2,"") ->  | AH128: =PI()*AF25/3000*((AE24/2)^2+(AE24/2*AE25/2)+(AE25/2)^2) -> 0
M129: =M128 -> 735 | N129: =IF($N$63=TRUE,0,"") -> 0 | O129: 0 | S129: =S128 -> 641 | T129: =IF($T$63=TRUE,0,"") -> 0 | U129: 0 | Y129: =Y128 ->  | Z129: =IF($Z$63=TRUE,0,"") ->  | AE129: =AE128 ->  | AF129: =IF($AF$63=TRUE,0,"") -> 
M130: =M129 -> 735 | N130: =N128 -> 52.5 | O130: -52.5 | S130: =S129 -> 641 | T130: =T128 -> 53.4 | U130: -53.4 | Y130: =Y129 ->  | Z130: =Z128 ->  | AE130: =AE129 ->  | AF130: =AF128 -> 
L131: 21 | M131: =IF($N$63=FALSE,"",SUM(N6:N26)+$D$8) -> 766 | N131: =IF($N$63=TRUE,M26/2,"") -> 48.5 | O131: -48.5 | P131: =PI()*N26/3000*((M25/2)^2+(M25/2*M26/2)+(M26/2)^2) -> 248.4970991 | R131: 21 | S131: =IF($T$63=FALSE,"",SUM(T6:T26)+$D$8) -> 671 | T131: =IF($T$63=TRUE,S26/2,"") -> 49 | U131: =IF($T$63=TRUE,-T131,"") -> -49 | V131: =PI()*T26/3000*((S25/2)^2+(S25/2*S26/2)+(S26/2)^2) -> 247.2169525 | X131: 21 | Y131: =IF($Z$63=FALSE,"",SUM(Z6:Z26)+$D$8) ->  | Z131: =IF($Z$63=TRUE,Y26/2,"") ->  | AA131: =IF($Z$63=TRUE,-Z131,"") ->  | AB131: =PI()*Z26/3000*((Y25/2)^2+(Y25/2*Y26/2)+(Y26/2)^2) -> 0 | AD131: 21 | AE131: =IF($AF$63=FALSE,"",SUM(AF6:AF26)+$D$8) ->  | AF131: =IF($AF$63=TRUE,AE26/2,"") ->  | AG131: =IF($AF$63=TRUE,-AF131,"") ->  | AH131: =PI()*AF26/3000*((AE25/2)^2+(AE25/2*AE26/2)+(AE26/2)^2) -> 0
M132: =M131 -> 766 | N132: =IF($N$63=TRUE,0,"") -> 0 | O132: =IF($N$63=TRUE,-N132,"") -> 0 | S132: =S131 -> 671 | T132: =IF($T$63=TRUE,0,"") -> 0 | U132: 0 | Y132: =Y131 ->  | Z132: =IF($Z$63=TRUE,0,"") ->  | AE132: =AE131 ->  | AF132: =IF($AF$63=TRUE,0,"") -> 
M133: =M132 -> 766 | N133: =N131 -> 48.5 | O133: -48.5 | S133: =S132 -> 671 | T133: =T131 -> 49 | U133: -49 | Y133: =Y132 ->  | Z133: =Z131 ->  | AE133: =AE132 ->  | AF133: =AF131 -> 
L134: 22 | M134: =IF($N$63=FALSE,"",SUM(N6:N27)+$D$8) -> 799 | N134: =IF($N$63=TRUE,M27/2,"") -> 43 | O134: -43 | P134: =PI()*N27/3000*((M26/2)^2+(M26/2*M27/2)+(M27/2)^2) -> 217.2544838 | R134: 22 | S134: =IF($T$63=FALSE,"",SUM(T6:T27)+$D$8) -> 701 | T134: =IF($T$63=TRUE,S27/2,"") -> 42.75 | U134: -42.75 | V134: =PI()*T27/3000*((S26/2)^2+(S26/2*S27/2)+(S27/2)^2) -> 198.652721 | X134: 22 | Y134: =IF($Z$63=FALSE,"",SUM(Z6:Z27)+$D$8) ->  | Z134: =IF($Z$63=TRUE,Y27/2,"") ->  | AB134: =PI()*Z27/3000*((Y26/2)^2+(Y26/2*Y27/2)+(Y27/2)^2) -> 0 | AD134: 22 | AE134: =IF($AF$63=FALSE,"",SUM(AF6:AF27)+$D$8) ->  | AF134: =IF($AF$63=TRUE,AE27/2,"") ->  | AH134: =PI()*AF27/3000*((AE26/2)^2+(AE26/2*AE27/2)+(AE27/2)^2) -> 0
M135: =M134 -> 799 | N135: =IF($N$63=TRUE,0,"") -> 0 | O135: 0 | S135: =S134 -> 701 | T135: =IF($T$63=TRUE,0,"") -> 0 | U135: 0 | Y135: =Y134 ->  | Z135: =IF($Z$63=TRUE,0,"") ->  | AE135: =AE134 ->  | AF135: =IF($AF$63=TRUE,0,"") -> 
M136: =M135 -> 799 | N136: =N134 -> 43 | O136: -43 | S136: =S135 -> 701 | T136: =T134 -> 42.75 | U136: -42.75 | Y136: =Y135 ->  | Z136: =Z134 ->  | AE136: =AE135 ->  | AF136: =AF134 -> 
L137: 23 | M137: =IF($N$63=FALSE,"",SUM(N6:N28)+$D$8) -> 828 | N137: =IF($N$63=TRUE,M28/2,"") -> 36.5 | O137: -36.5 | P137: =PI()*N28/3000*((M27/2)^2+(M27/2*M28/2)+(M28/2)^2) -> 144.2742392 | R137: 23 | S137: =IF($T$63=FALSE,"",SUM(T6:T28)+$D$8) -> 731 | T137: =IF($T$63=TRUE,S28/2,"") -> 36.5 | U137: -36.5 | V137: =PI()*T28/3000*((S27/2)^2+(S27/2*S28/2)+(S28/2)^2) -> 148.2890637 | X137: 23 | Y137: =IF($Z$63=FALSE,"",SUM(Z6:Z28)+$D$8) ->  | Z137: =IF($Z$63=TRUE,Y28/2,"") ->  | AB137: =PI()*Z28/3000*((Y27/2)^2+(Y27/2*Y28/2)+(Y28/2)^2) -> 0 | AD137: 23 | AE137: =IF($AF$63=FALSE,"",SUM(AF6:AF28)+$D$8) ->  | AF137: =IF($AF$63=TRUE,AE28/2,"") ->  | AH137: =PI()*AF28/3000*((AE27/2)^2+(AE27/2*AE28/2)+(AE28/2)^2) -> 0
M138: =M137 -> 828 | N138: =IF($N$63=TRUE,0,"") -> 0 | O138: 0 | S138: =S137 -> 731 | T138: =IF($T$63=TRUE,0,"") -> 0 | U138: 0 | Y138: =Y137 ->  | Z138: =IF($Z$63=TRUE,0,"") ->  | AE138: =AE137 ->  | AF138: =IF($AF$63=TRUE,0,"") -> 
M139: =M138 -> 828 | N139: =N137 -> 36.5 | O139: -36.5 | S139: =S138 -> 731 | T139: =T137 -> 36.5 | U139: -36.5 | Y139: =Y138 ->  | Z139: =Z137 ->  | AE139: =AE138 ->  | AF139: =AF137 -> 
L140: 24 | M140: =IF($N$63=FALSE,"",SUM(N6:N29)+$D$8) -> 858 | N140: =IF($N$63=TRUE,M29/2,"") -> 28.5 | O140: -28.5 | P140: =PI()*N29/3000*((M28/2)^2+(M28/2*M29/2)+(M29/2)^2) -> 100.051872 | R140: 24 | S140: =IF($T$63=FALSE,"",SUM(T6:T29)+$D$8) -> 761 | T140: =IF($T$63=TRUE,S29/2,"") -> 30.5 | U140: -30.5 | V140: =PI()*T29/3000*((S28/2)^2+(S28/2*S29/2)+(S29/2)^2) -> 106.052314 | X140: 24 | Y140: =IF($Z$63=FALSE,"",SUM(Z6:Z29)+$D$8) ->  | Z140: =IF($Z$63=TRUE,Y29/2,"") ->  | AB140: =PI()*Z29/3000*((Y28/2)^2+(Y28/2*Y29/2)+(Y29/2)^2) -> 0 | AD140: 24 | AE140: =IF($AF$63=FALSE,"",SUM(AF6:AF29)+$D$8) ->  | AF140: =IF($AF$63=TRUE,AE29/2,"") ->  | AH140: =PI()*AF29/3000*((AE28/2)^2+(AE28/2*AE29/2)+(AE29/2)^2) -> 0
M141: =M140 -> 858 | N141: =IF($N$63=TRUE,0,"") -> 0 | O141: 0 | S141: =S140 -> 761 | T141: =IF($T$63=TRUE,0,"") -> 0 | U141: 0 | Y141: =Y140 ->  | Z141: =IF($Z$63=TRUE,0,"") ->  | AE141: =AE140 ->  | AF141: =IF($AF$63=TRUE,0,"") -> 
M142: =M141 -> 858 | N142: =N140 -> 28.5 | O142: -28.5 | S142: =S141 -> 761 | T142: =T140 -> 30.5 | U142: -30.5 | Y142: =Y141 ->  | Z142: =Z140 ->  | AE142: =AE141 ->  | AF142: =AF140 -> 
L143: 25 | M143: =IF($N$63=FALSE,"",SUM(N6:N30)+$D$8) -> 886 | N143: =IF($N$63=TRUE,M30/2,"") -> 21 | O143: -21 | P143: =PI()*N30/3000*((M29/2)^2+(M29/2*M30/2)+(M30/2)^2) -> 54.29614583 | R143: 25 | S143: =IF($T$63=FALSE,"",SUM(T6:T30)+$D$8) -> 791 | T143: =IF($T$63=TRUE,S30/2,"") -> 23.5 | U143: -23.5 | V143: =PI()*T30/3000*((S29/2)^2+(S29/2*S30/2)+(S30/2)^2) -> 69.09147643 | X143: 25 | Y143: =IF($Z$63=FALSE,"",SUM(Z6:Z30)+$D$8) ->  | Z143: =IF($Z$63=TRUE,Y30/2,"") ->  | AB143: =PI()*Z30/3000*((Y29/2)^2+(Y29/2*Y30/2)+(Y30/2)^2) -> 0 | AD143: 25 | AE143: =IF($AF$63=FALSE,"",SUM(AF6:AF30)+$D$8) ->  | AF143: =IF($AF$63=TRUE,AE30/2,"") ->  | AH143: =PI()*AF30/3000*((AE29/2)^2+(AE29/2*AE30/2)+(AE30/2)^2) -> 0
M144: =M143 -> 886 | N144: =IF($N$63=TRUE,0,"") -> 0 | O144: 0 | S144: =S143 -> 791 | T144: =IF($T$63=TRUE,0,"") -> 0 | U144: 0 | Y144: =Y143 ->  | Z144: =IF($Z$63=TRUE,0,"") ->  | AE144: =AE143 ->  | AF144: =IF($AF$63=TRUE,0,"") -> 
M145: =M144 -> 886 | N145: =N143 -> 21 | O145: -21 | S145: =S144 -> 791 | T145: =T143 -> 23.5 | U145: -23.5 | Y145: =Y144 ->  | Z145: =Z143 ->  | AE145: =AE144 ->  | AF145: =AF143 -> 
L146: 26 | M146: =IF($N$63=FALSE,"",SUM(N6:N31)+$D$8) -> 913 | N146: =IF($N$63=TRUE,M31/2,"") -> 11 | O146: -11 | P146: =PI()*N31/3000*((M30/2)^2+(M30/2*M31/2)+(M31/2)^2) -> 22.42154677 | R146: 26 | S146: =IF($T$63=FALSE,"",SUM(T6:T31)+$D$8) -> 841 | T146: =IF($T$63=TRUE,S31/2,"") -> 11 | U146: -11 | V146: =PI()*T31/3000*((S30/2)^2+(S30/2*S31/2)+(S31/2)^2) -> 48.78631592 | X146: 26 | Y146: =IF($Z$63=FALSE,"",SUM(Z6:Z31)+$D$8) ->  | Z146: =IF($Z$63=TRUE,Y31/2,"") ->  | AB146: =PI()*Z31/3000*((Y30/2)^2+(Y30/2*Y31/2)+(Y31/2)^2) -> 0 | AD146: 26 | AE146: =IF($AF$63=FALSE,"",SUM(AF6:AF31)+$D$8) ->  | AF146: =IF($AF$63=TRUE,AE31/2,"") ->  | AH146: =PI()*AF31/3000*((AE30/2)^2+(AE30/2*AE31/2)+(AE31/2)^2) -> 0
M147: =M146 -> 913 | N147: =IF($N$63=TRUE,0,"") -> 0 | O147: 0 | S147: =S146 -> 841 | T147: =IF($T$63=TRUE,0,"") -> 0 | U147: 0 | Y147: =Y146 ->  | Z147: =IF($Z$63=TRUE,0,"") ->  | AE147: =AE146 ->  | AF147: =IF($AF$63=TRUE,0,"") -> 
M148: =M147 -> 913 | N148: =N146 -> 11 | O148: -11 | S148: =S147 -> 841 | T148: =T146 -> 11 | U148: -11 | Y148: =Y147 ->  | Z148: =Z146 ->  | AE148: =AE147 ->  | AF148: =AF146 -> 
L149: 27 | M149: =IF($N$63=FALSE,"",SUM(N6:N32)+$D$8) -> 913 | N149: =IF($N$63=TRUE,M32/2,"") -> 0 | O149: 0 | P149: =PI()*N32/3000*((M31/2)^2+(M31/2*M32/2)+(M32/2)^2) -> 0 | R149: 27 | S149: =IF($T$63=FALSE,"",SUM(T6:T32)+$D$8) -> 841 | T149: =IF($T$63=TRUE,S32/2,"") -> 0 | U149: 0 | V149: =PI()*T32/3000*((S31/2)^2+(S31/2*S32/2)+(S32/2)^2) -> 0 | X149: 27 | Y149: =IF($Z$63=FALSE,"",SUM(Z6:Z32)+$D$8) ->  | Z149: =IF($Z$63=TRUE,Y32/2,"") ->  | AB149: =PI()*Z32/3000*((Y31/2)^2+(Y31/2*Y32/2)+(Y32/2)^2) -> 0 | AD149: 27 | AE149: =IF($AF$63=FALSE,"",SUM(AF6:AF32)+$D$8) ->  | AF149: =IF($AF$63=TRUE,AE32/2,"") ->  | AH149: =PI()*AF32/3000*((AE31/2)^2+(AE31/2*AE32/2)+(AE32/2)^2) -> 0
M150: =M149 -> 913 | N150: =IF($N$63=TRUE,0,"") -> 0 | O150: 0 | S150: =S149 -> 841 | T150: =IF($T$63=TRUE,0,"") -> 0 | U150: 0 | Y150: =Y149 ->  | Z150: =IF($Z$63=TRUE,0,"") ->  | AE150: =AE149 ->  | AF150: =IF($AF$63=TRUE,0,"") -> 
M151: =M150 -> 913 | N151: =N149 -> 0 | O151: 0 | S151: =S150 -> 841 | T151: =T149 -> 0 | U151: 0 | Y151: =Y150 ->  | Z151: =Z149 ->  | AE151: =AE150 ->  | AF151: =AF149 -> 
L152: 28 | M152: =IF($N$63=FALSE,"",SUM(N6:N33)+$D$8) -> 913 | N152: =IF($N$63=TRUE,M33/2,"") -> 0 | O152: 0 | P152: =PI()*N33/3000*((M32/2)^2+(M32/2*M33/2)+(M33/2)^2) -> 0 | R152: 28 | S152: =IF($T$63=FALSE,"",SUM(T6:T33)+$D$8) -> 841 | T152: =IF($T$63=TRUE,S33/2,"") -> 0 | U152: 0 | V152: =PI()*T33/3000*((S32/2)^2+(S32/2*S33/2)+(S33/2)^2) -> 0 | X152: 28 | Y152: =IF($Z$63=FALSE,"",SUM(Z6:Z33)+$D$8) ->  | Z152: =IF($Z$63=TRUE,Y33/2,"") ->  | AB152: =PI()*Z33/3000*((Y32/2)^2+(Y32/2*Y33/2)+(Y33/2)^2) -> 0 | AD152: 28 | AE152: =IF($AF$63=FALSE,"",SUM(AF6:AF33)+$D$8) ->  | AF152: =IF($AF$63=TRUE,AE33/2,"") ->  | AH152: =PI()*AF33/3000*((AE32/2)^2+(AE32/2*AE33/2)+(AE33/2)^2) -> 0
M153: =M152 -> 913 | N153: =IF($N$63=TRUE,0,"") -> 0 | O153: 0 | S153: =S152 -> 841 | T153: =IF($T$63=TRUE,0,"") -> 0 | U153: 0 | Y153: =Y152 ->  | Z153: =IF($Z$63=TRUE,0,"") ->  | AE153: =AE152 ->  | AF153: =IF($AF$63=TRUE,0,"") -> 
M154: =M153 -> 913 | N154: =N152 -> 0 | O154: 0 | S154: =S153 -> 841 | T154: =T152 -> 0 | U154: 0 | Y154: =Y153 ->  | Z154: =Z152 ->  | AE154: =AE153 ->  | AF154: =AF152 -> 
L155: 29 | M155: =IF($N$63=FALSE,"",SUM(N6:N34)+$D$8) -> 913 | N155: =IF($N$63=TRUE,M34/2,"") -> 0 | O155: 0 | P155: =PI()*N34/3000*((M33/2)^2+(M33/2*M34/2)+(M34/2)^2) -> 0 | R155: 29 | S155: =IF($T$63=FALSE,"",SUM(T6:T34)+$D$8) -> 841 | T155: =IF($T$63=TRUE,S34/2,"") -> 0 | U155: 0 | V155: =PI()*T34/3000*((S33/2)^2+(S33/2*S34/2)+(S34/2)^2) -> 0 | X155: 29 | Y155: =IF($Z$63=FALSE,"",SUM(Z6:Z34)+$D$8) ->  | Z155: =IF($Z$63=TRUE,Y34/2,"") ->  | AB155: =PI()*Z34/3000*((Y33/2)^2+(Y33/2*Y34/2)+(Y34/2)^2) -> 0 | AD155: 29 | AE155: =IF($AF$63=FALSE,"",SUM(AF6:AF34)+$D$8) ->  | AF155: =IF($AF$63=TRUE,AE34/2,"") ->  | AH155: =PI()*AF34/3000*((AE33/2)^2+(AE33/2*AE34/2)+(AE34/2)^2) -> 0
M156: =M155 -> 913 | N156: =IF($N$63=TRUE,0,"") -> 0 | O156: 0 | S156: =S155 -> 841 | T156: =IF($T$63=TRUE,0,"") -> 0 | U156: 0 | Y156: =Y155 ->  | Z156: =IF($Z$63=TRUE,0,"") ->  | AE156: =AE155 ->  | AF156: =IF($AF$63=TRUE,0,"") -> 
M157: =M156 -> 913 | N157: =N155 -> 0 | O157: 0 | S157: =S156 -> 841 | T157: =T155 -> 0 | U157: 0 | Y157: =Y156 ->  | Z157: =Z155 ->  | AE157: =AE156 ->  | AF157: =AF155 -> 
L158: 30 | M158: =IF($N$63=FALSE,"",SUM(N6:N35)+$D$8) -> 913 | N158: =IF($N$63=TRUE,M35/2,"") -> 0 | O158: 0 | P158: =PI()*N35/3000*((M34/2)^2+(M34/2*M35/2)+(M35/2)^2) -> 0 | R158: 30 | S158: =IF($T$63=FALSE,"",SUM(T6:T35)+$D$8) -> 841 | T158: =IF($T$63=TRUE,S35/2,"") -> 0 | U158: 0 | V158: =PI()*T35/3000*((S34/2)^2+(S34/2*S35/2)+(S35/2)^2) -> 0 | X158: 30 | Y158: =IF($Z$63=FALSE,"",SUM(Z6:Z35)+$D$8) ->  | Z158: =IF($Z$63=TRUE,Y35/2,"") ->  | AB158: =PI()*Z35/3000*((Y34/2)^2+(Y34/2*Y35/2)+(Y35/2)^2) -> 0 | AD158: 30 | AE158: =IF($AF$63=FALSE,"",SUM(AF6:AF35)+$D$8) ->  | AF158: =IF($AF$63=TRUE,AE35/2,"") ->  | AH158: =PI()*AF35/3000*((AE34/2)^2+(AE34/2*AE35/2)+(AE35/2)^2) -> 0
M159: =M158 -> 913 | N159: =IF($N$63=TRUE,0,"") -> 0 | O159: 0 | S159: =S158 -> 841 | T159: =IF($T$63=TRUE,0,"") -> 0 | U159: 0 | Y159: =Y158 ->  | Z159: =IF($Z$63=TRUE,0,"") ->  | AE159: =AE158 ->  | AF159: =IF($AF$63=TRUE,0,"") -> 
M160: =M159 -> 913 | N160: =N158 -> 0 | O160: 0 | S160: =S159 -> 841 | T160: =T158 -> 0 | U160: 0 | Y160: =Y159 ->  | Z160: =Z158 ->  | AE160: =AE159 ->  | AF160: =AF158 -> 
M161: =IF(SUM(M5:M35)+SUM(N6:N35)+$D$8="","",SUM(N6:N35)+$D$8) -> 913 | P161: =SUM(P68:P158) -> 3905.392898 | S161: =IF(SUM(S5:S35)+SUM(T6:T35)+$D$8="","",SUM(T6:T35)+$D$8) -> 841 | V161: =SUM(V68:V158) -> 3195.935513 | Y161: =IF(SUM(Y5:Y35)+SUM(Z6:Z35)+$D$8="","",SUM(Z6:Z35)+$D$8) -> 51 | AB161: =SUM(AB68:AB158) -> 19.329 | AE161: =IF(SUM(AE5:AE35)+SUM(AF6:AF35)+$D$8="","",SUM(AF6:AF35)+$D$8) -> 51 | AH161: =SUM(AH68:AH158) -> 19.329
M162: L total | P162: total vol | S162: L total | V162: total vol | Y162: L total | AB162: total vol | AE162: L total | AH162: total vol

Sheet FOS text
B2: !! Thanks to Frits Overmars and Wobbly for sharing their knowledge !!
M3: DISCLAIMER (by Frits) :
M4: The 'FOS exhaust concept' is only meant to help beginning tuners on their way. Many important factors, like compression ratio, ignition timing, type of fuel, carburetter
M5: diameter, crankcase volume and angle.areas, are not taken into account. Instead of all those factors that I left out, I included one variable, the speed of sound.
M6: Starting with 550 m/s will get you in the right ballpark, after which you can vary this value according to your findings. You should not use this simple exhaust concept
M7: to improve on the highly developed RSA engine, where all of the above-mentioned factors were taken into account.
M8: Final remark: the calculation of the tailpipe restrictor diameter is critical: you can only apply it to engines that are thermally sound. Air-cooled engines are not.
M10: This excel calculates the latest FOS expansion chambers. You need to place the file in a "secure environment" for the macro's to run. Google "excel safe environment".
M12: In the original FOS PIPE, you have the possibility to integrate a Wobbly Exhaust Duct/Spigot. This greatly improves performance.
M13: Chose 1 at number of exhaust ports if you have a single exhaust port, chose 2 when you have auxiliary ports or a double port.
M14: Single port needs 90% cross sectional area and multiple 75%, at 1,5 times bore distance, see picture.
M15: Untill that point, you do not "round of" the duct much, the transition to fully round is done in the spigot (from 1,5 to 2* bore), with and end-diameter-area that eaquals
M16: the total exhaust port area.
M18: EDIT : FRITS SAYS HIS "FOS CONCEPT AS IS" IS NOT COMPATIBLE WITH THE WOBBLY DUCT
M20: Multiple headers/diffusers/baffles ain't worth the trouble when you can built a straight pipe, according to Frits.
M21: However most people need to make curves in their pipes, so than it certainly is worth the trouble (my humble opinion). In those situations, you can use the multiple stage pipe.
M22: The basic 3 stage is also calculated according to FOS-pipe (if you set everything to 100% of FOS, you get an original FOS pipe), but you can change the dimensions using the slider/buttons.
M23: This way it is easier to make changes than to have to enter numbers all the time. And you can immediatly see the changes on the graph. If it looks silly, you probably did something silly ;-)
M25: With the 3 buttons on the right of the graph, you can show/hide the 3 pipes. The Graph is to scale, and when you make a new pipe that's a lot smaller/bigger
M26: than the previous (or if the changes in dimensions require it), you can use the "Auto Adjust Graph" button to rescale the graph.
M28: With the grey buttons you change the green cells to the right of them. So for "D Diffuser 1" and "L Diffuser 1" you change the dia of the cone and it's length and therefore also the angle.
M29: The diameters of baffle3/stinger and belly (= D of last diffuser , and = D max) are changed by percentage of the originaly calculated FOS pipe. So 100% equals original FOS pipe.
M31: A bigger D max increases the volume of the pipe and shifts the optimal cylinder filling to lower rpm's. But the available energy is limited : a bigger D max uses more of
M32: the available energy for suction, meaning their is less energy left for pushing back the fresh charge that's already in the header back in the cylinder.
M33: A solution could be to use a steeper baffle cone (shorter length) to give back some amplitude .
M35: Total header length should be about 31-33% of total length (and includes the exhaust duct). Diffuser is about 62-68%, best compromise is about 66%.
M36: The header is also best made in that 66/34% range : header1 66% and header2 34% .
M37: The light brown "% of L total" show you the %'s for the Header and Diffuser length's. one versus the original FOS-pipe, the other to your own design.
M38: A steeper section returns a stronger pulse, so making a 3stage Baffle gives you the option of having a higher return pulse in the lower rev-range giving up some top-end power.
M40: Cone angles = included , not to centerline
M41: The yellow cells in the % columns represent the total % of the section above, so if the yellow cel under the header %'s is 100, it means the total length of the header = L of original FOS
M42: If you want for example a single baffle in the 3 stage pipes, simply set the length of Baffle 3 to 100%, Baffle 1 and 2 to 0% and D Baffle 1 and 2 = D max.
M44: It is protected by a password, simply to avoid messing it up. If you want to make changes : the pasword is "x" (just a simple x).
M45: The password is also integrated in the AutoAdjustButton as the safety needs to be lifted momentarily to adjust the graph. So if you want another password, you need to change that to.
